Cogmind - Beta 17 @@@ ROGUE MODE // 2026.07.20 @ 18:39:49 // Winter2019/RPGLIKE Player: Gallgagger Result: Heading to fleet! Performance ------------- Evolutions (9) 4500 Regions Visited (32) 6400 Robots Destroyed (2249) 11245 Value Destroyed (135010) 135010 Prototype IDs (375) 7500 Alien Tech Used (11) 2200 Bonus (158279) 158279 TOTAL SCORE: 325134 Bonus ------- Triggered High Security 5000 High Alert Combat Kills 78526 Follower Combat Kills 1246 Hunted by Unchained 2500 Destroyed Unchained 5000 Network Hubs Disabled 600 Destroyed Z-Imprinter 1000 MAIN.C Attacked Warlord 500 Warlord Defense Kills 36582 Built Enhanced Grunts 300 Used Core Reset Matrix 3000 Scanned by Researcher 500 Pursued by Intercept 1000 Destroyed MAIN.C Guards 500 Met MAIN.C 5000 Destroyed MAIN.C Shell 5000 Destroyed MAIN.C 10000 Win 3000 Friendly Fire -975 Cogmind --------- Core Integrity 420/1000 Matter 235/425 Energy 1182/1190 System Corruption 0% +Membrane Temperature Cool (8) +ITN Movement Flying (28) Location To Fleet Rendezvous Parts ------- > --- POWER (3) -------- DM-Deuterium Reactor > --- PROPULSION (4) --- Flying QT-Armored Exoskeleton Experimental Q-thruster > --- UTILITY (13) ----- Armored Scrap Engine Advanced Thermal Generator V4-D3R's Forcewell Advanced Signal Interpreter Experimental Core Analyzer Quantum Capacitor Advanced Reaction Control System Advanced Phase Shifter Advanced Focal Shield Thermal Barrier Experimental Hardlight Generator > --- WEAPON (6) ------- Containment Facilitator V4-D3R's Forcegen Hpw. Ballistic Linear Construct/C > --- INVENTORY (6) ---- Experimental Heat Sink Peak State ------------ > --- POWER ------------ DM-Deuterium Reactor > --- PROPULSION ------- Flying QT-Armored Exoskeleton Experimental Q-thruster > --- UTILITY ---------- Armored Scrap Engine Advanced Thermal Generator V4-D3R's Forcewell Advanced Signal Interpreter Experimental Core Analyzer Quantum Capacitor Advanced Reaction Control System Advanced Phase Shifter Advanced Focal Shield Thermal Barrier Experimental Hardlight Generator > --- WEAPON ----------- Containment Facilitator V4-D3R's Forcegen Hpw. Ballistic Linear Construct/C > --- INVENTORY -------- Experimental Heat Sink Meganuke [Rating: 218] Favorites ----------- Power Constructs Engine Improved Ion Engine Power Core Micro Nuclear Core Reactor Constructs Propulsion Constructs Wheel Wheel Hover Unit Cooled Linear Gravjet Flight Unit Constructs Utility Armored Scrap Engine Device Armored Scrap Engine Storage V4-D3R's Forcewell Processor Advanced Signal Interpreter Protection Centrium Medium Armor Plating Weapon Constructs Energy Gun Spread Laser Energy Cannon EM Pulse Cannon Ballistic Gun Assault Rifle Ballistic Cannon Constructs Launcher Containment Facilitator Special Weapon V4-D3R's Forcegen Slashing Weapon Phasing Sabre Build | -11 -10 -10 -9 -9 -8 -8 -8 -6 -6 -6 -6 -6 -5 -5 -5 -5 -5 -5 -5 -5 -4 -4 -4 -4 -3 -3 -3 -2 -2 -2 -1 -1 ------- Run | Yrd Mat Min Mat Min Mat Sto Rec Fac Low Low Zio Dee Pro Fac Was Fac Ext Cet Arc Hub Fac Upp Upp War Pro Res Tes Res Qua Sec Acc Com Slots Evolved 22 | 3 3 . 5 1 . 1 . 1 . . . . . 1 . . . . . . 1 1 . . 1 . . . 2 . 2 . Power 2 | . . . . 1 . . . . . . . . . . . . . . . . . . . . . . . . 1 . . . Propulsion 3 | 1 1 . 1 . . . . . . . . . . . . . . . . . . . . . . . . . . . . . Utility 12 | 1 1 . 3 . . 1 . 1 . . . . . 1 . . . . . . . 1 . . 1 . . . 1 . 1 . Weapon 5 | 1 1 . 1 . . . . . . . . . . . . . . . . . 1 . . . . . . . . . 1 . Parts Attached 188 | 7 8 . 5 3 4 9 4 16 1 1 3 6 . 13 . 7 1 5 3 4 8 1 . 6 . 2 11 3 1 20 33 3 Power 6 | 1 1 . . 2 . 1 . . . . . . . . . . . . . . . . . . . . . . 1 . . . Engine 3 | 1 1 . . . . 1 . . . . . . . . . . . . . . . . . . . . . . . . . . Core 2 | . . . . 2 . . . . . . . . . . . . . . . . . . . . . . . . . . . . Reactor 1 | . . . . . . . . . . . . . . . . . . . . . . . . . . . . . 1 . . . Propulsion 24 | 2 3 . 2 . 2 5 1 3 . . . 1 . . . 4 . . . . . . . 1 . . . . . . . . Treads . | . . . . . . . . . . . . . . . . . . . . . . . . . . . . . . . . . Leg . | . . . . . . . . . . . . . . . . . . . . . . . . . . . . . . . . . Wheel 3 | 2 . . . . . . . 1 . . . . . . . . . . . . . . . . . . . . . . . . Hover 3 | . . . . . . . . 1 . . . 1 . . . 1 . . . . . . . . . . . . . . . . Flight 18 | . 3 . 2 . 2 5 1 1 . . . . . . . 3 . . . . . . . 1 . . . . . . . . Utility 118 | 2 1 . 2 1 2 2 1 2 1 1 . 2 . 9 . 1 . 3 2 4 5 1 . 5 . 2 11 3 . 20 32 3 Device 106 | 2 . . 2 1 2 2 1 1 . 1 . 2 . 8 . 1 . 1 2 3 3 1 . 5 . 2 11 3 . 18 32 2 Storage 1 | . . . . . . . . . . . . . . . . . . . . . 1 . . . . . . . . . . . Processor 6 | . 1 . . . . . . 1 . . . . . . . . . . . 1 . . . . . . . . . 2 . 1 Hackware . | . . . . . . . . . . . . . . . . . . . . . . . . . . . . . . . . . Protection 5 | . . . . . . . . . 1 . . . . 1 . . . 2 . . 1 . . . . . . . . . . . Artifact . | . . . . . . . . . . . . . . . . . . . . . . . . . . . . . . . . . Weapon 40 | 2 3 . 1 . . 1 2 11 . . 3 3 . 4 . 2 1 2 1 . 3 . . . . . . . . . 1 . Energy Gun 19 | 1 3 . 1 . . . . 3 . . . 3 . 4 . 1 . 1 . . 2 . . . . . . . . . . . Energy Cannon 5 | . . . . . . . 2 3 . . . . . . . . . . . . . . . . . . . . . . . . Ballistic Gun 6 | 1 . . . . . 1 . 2 . . . . . . . . . 1 1 . . . . . . . . . . . . . Ballistic Cannon 2 | . . . . . . . . 2 . . . . . . . . . . . . . . . . . . . . . . . . Launcher 5 | . . . . . . . . 1 . . 2 . . . . 1 . . . . . . . . . . . . . . 1 . Special Weapon 2 | . . . . . . . . . . . 1 . . . . . . . . . 1 . . . . . . . . . . . Impact Weapon . | . . . . . . . . . . . . . . . . . . . . . . . . . . . . . . . . . Slashing Weapon 1 | . . . . . . . . . . . . . . . . . 1 . . . . . . . . . . . . . . . Piercing Weapon . | . . . . . . . . . . . . . . . . . . . . . . . . . . . . . . . . . Special Melee Weapon . | . . . . . . . . . . . . . . . . . . . . . . . . . . . . . . . . . Unidentified Prototypes 73 | . . . 1 . . 3 1 10 . . 1 5 . 7 . 4 . 4 . 4 7 . . 3 . 1 7 . 1 8 5 1 Parts Lost 3 | . . . . . . 1 . . . . . . . . . 1 . . . . . . . . . . . 1 . . . . Power . | . . . . . . . . . . . . . . . . . . . . . . . . . . . . . . . . . Propulsion . | . . . . . . . . . . . . . . . . . . . . . . . . . . . . . . . . . Utility 3 | . . . . . . 1 . . . . . . . . . 1 . . . . . . . . . . . 1 . . . . Weapon . | . . . . . . . . . . . . . . . . . . . . . . . . . . . . . . . . . Highest Loss Streak 1 | . . . . . . 1 . . . . . . . . . 1 . . . . . . . . . . . 1 . . . . To Critical Strikes . | . . . . . . . . . . . . . . . . . . . . . . . . . . . . . . . . . Average Backups 2 | . . 1 . . . 3 2 2 2 4 4 4 6 3 4 4 5 4 4 3 4 3 3 2 1 . 1 1 1 1 1 1 Power . | . . . . . . . . . . . . . . . . . . . . . . . . . . . . . . . . . Propulsion . | . . . . . . 3 2 1 1 1 1 1 1 1 . . . . . . . . . . . . . . . . . . Utility . | . . . . . . . . . . . . . . . 1 1 1 1 2 2 3 2 2 1 1 . 1 1 . . . 1 Weapon 1 | . . 1 . . . . . . 1 2 3 2 5 . 1 2 3 3 2 1 1 1 1 . . . . . . . . . Tool/Special . | . . . . . . . . . . . . . . . . . . . . . . . . . . . . . . . . . Unused Backups 40 | . . . . . . 1 6 7 . 2 . 3 . 10 . . 1 3 2 2 . . . 2 . . . . . . 1 . Power . | . . . . . . . . . . . . . . . . . . . . . . . . . . . . . . . . . Propulsion 6 | . . . . . . 1 2 3 . . . . . . . . . . . . . . . . . . . . . . . . Utility 1 | . . . . . . . . . . . . . . . . . . . . . . . . 1 . . . . . . . . Weapon 33 | . . . . . . . 4 4 . 2 . 3 . 10 . . 1 3 2 2 . . . 1 . . . . . . 1 . Tool/Special . | . . . . . . . . . . . . . . . . . . . . . . . . . . . . . . . . . Average Slot Usage (%) 66 | . 99 100 93 86 94 97 88 60 55 55 55 57 61 54 52 53 52 55 59 63 63 65 66 65 61 63 63 62 62 63 63 63 Core 1 | . . . . . 11 11 10 8 5 5 5 5 5 . . . . . . . . . . . . . . . . . . . Reactor 3 | . . . . . . . . . . . . . . 4 5 5 5 5 5 5 5 4 4 4 4 4 4 4 6 6 3 3 Hover 1 | . . . . . . . . 2 5 5 5 5 5 5 5 5 . . . . . . . . . . . . . . . . Flight 9 | . 14 30 26 25 25 24 22 3 . . . . . . . 1 10 10 10 10 10 9 9 9 9 9 9 9 8 8 7 7 Device 29 | . 25 20 18 20 26 30 28 31 28 27 27 32 33 30 26 26 26 26 28 31 29 32 33 32 28 31 31 30 29 31 33 31 Storage 1 | . . . . . . . . . . . . . . . . . . . . . 3 4 4 4 4 4 4 4 4 4 3 3 Processor 4 | . 1 10 7 6 6 5 5 5 5 5 5 5 5 5 5 5 5 5 5 5 5 4 4 4 4 4 4 4 4 4 3 4 Protection 1 | . . . . . . . . . 3 5 5 . . 2 5 4 . 3 5 5 1 . . . . . . . . . . . Energy Gun 4 | . 30 30 32 25 25 24 16 . . . . . . . . . . . . . . . . . . . . . . . . . Energy Cannon 2 | . . . . . . . 1 2 5 . . 1 . 3 . . . 3 5 4 . . . . 4 4 4 4 4 2 3 2 Ballistic Cannon 1 | . . . . . . . . 2 . 4 5 3 5 1 5 5 5 1 . . 4 4 4 3 . . . . . 1 . . Special Weapon 1 | . . . . . . . . . . . . 1 5 . . . . . . . 3 4 4 4 4 4 4 4 3 4 3 3 Peak Build Rating 218 | 9 16 16 26 36 44 54 67 97 90 90 96 105 105 121 106 128 124 139 138 147 161 165 165 176 185 186 185 185 200 209 215 218 Average Rating 127 | 5 12 16 20 26 38 50 62 77 89 87 90 94 105 104 105 112 118 125 133 138 154 164 165 167 176 183 184 183 192 197 196 210 On Entrance 111 | . 9 16 16 26 32 44 52 60 88 90 90 96 105 105 105 106 118 118 130 138 138 159 165 165 176 185 183 185 184 200 190 212 Avg Prop Armor Cover (%) 4 | 10 4 . . . . . . 1 . . . . . . . . . . . . . . . . . . . . . 7 7 . Naked Turns . | . . . . . . . . . . . . . . . . . . . . . . . . . . . . . . . . . Heaviest Build 91 | 8 18 18 22 27 34 38 39 64 70 70 74 72 66 83 70 70 35 53 50 55 61 62 62 80 82 85 85 77 87 91 91 86 Greatest Support 128 | 15 22 22 28 28 35 42 40 93 93 93 93 93 93 93 93 128 107 107 107 107 107 107 107 107 107 107 107 107 107 116 119 107 Greatest Overweight (x) 2 | . 1 . . . . . . . . . . . . . . . . . . . . . . . . . . . . 2 2 . Average Overweight (x) . | . . . . . . . . . . . . . . . . . . . . . . . . . . . . . . . . . Largest Inventory Capacity 6 | 1 1 1 1 1 2 4 4 6 6 6 6 6 6 6 6 6 6 6 6 6 6 6 6 6 6 6 6 6 6 6 6 6 Average Capacity 5 | . 1 1 1 1 1 3 4 4 6 6 6 6 6 6 6 6 6 6 6 6 6 6 6 6 6 6 6 6 6 6 6 6 Most Carried 6 | . 1 1 1 1 2 4 4 6 4 6 6 6 6 6 6 6 6 6 5 6 6 4 5 6 6 6 6 6 6 6 6 6 Average Carried 4 | . . 1 . . 1 3 2 3 2 5 5 4 6 4 5 5 5 5 4 5 4 3 4 5 5 5 5 5 5 4 4 4 Final Capacity 6 | 1 1 1 1 1 2 4 4 6 6 6 6 6 6 6 6 6 6 6 6 6 6 6 6 6 6 6 6 6 6 6 6 6 Final Carried 6 | . 1 1 1 1 1 4 1 2 4 6 6 6 6 6 6 5 6 5 5 4 5 3 5 6 5 6 6 6 6 4 6 1 Scrap Engine Consumption 139 | . . . . . . . 25 26 1 3 . 7 1 28 . 10 . 15 4 5 2 . . 4 . . 1 . . 5 1 1 Constructs Created 3 | . . . . . . . 3 . . . . . . . . . . . . . . . . . . . . . . . . . Constructs Modified 63 | . . . . . . . 5 14 . 2 . 3 . 15 . 5 . 7 2 3 1 . . 2 . . . . . 3 . 1 Class Distribution -------------------- 42% | Construct 19% | Scavenger-Construct 11% | Sprinter 6% | Alien-Sprinter 4% | Gunner 4% | Mutant 3% | Alien-Scout Dominant Class ---------------- Mutant | -10/Materials Gunner | -10/Mines Gunner | -9/Materials Sprinter | -9/Mines Sprinter | -8/Materials Sprinter | -8/Storage Sprinter | -8/Recycling Construct | -6/Factory Construct | -6/Lower Caves Construct | -6/Lower Caves Construct | -6/Zion Construct | -6/Deep Caves Construct | -5/Proximity Caves Construct | -5/Factory Construct | -5/Waste Construct | -5/Factory Construct | -5/Extension Commander-Construct | -5/Cetus Construct | -5/Archives Construct | -5/Hub_04(d) Scavenger-Construct | -4/Factory Scavenger-Construct | -4/Upper Caves Scavenger-Construct | -4/Upper Caves Construct | -4/Warlord Scavenger-Construct | -3/Proximity Caves Scavenger-Construct | -3/Research Scavenger-Construct | -3/Testing Scavenger-Construct | -2/Research Scavenger-Construct | -2/Quarantine Alien-Tank | -2/Section 7 Alien-Sprinter | -1/Access Alien-Scout | -1/Command Resources | -11 -10 -10 -9 -9 -8 -8 -8 -6 -6 -6 -6 -6 -5 -5 -5 -5 -5 -5 -5 -5 -4 -4 -4 -4 -3 -3 -3 -2 -2 -2 -1 -1 ----------- Run | Yrd Mat Min Mat Min Mat Sto Rec Fac Low Low Zio Dee Pro Fac Was Fac Ext Cet Arc Hub Fac Upp Upp War Pro Res Tes Res Qua Sec Acc Com Matter Collected 52136 | 296 100 . 50 79 70 120 93 1158 101 145 1434 919 161 1164 70 493 716 307 185 912 5525 398 568 7273 491 922 1660 2010 964 6587 9245 7920 Remotely . | . . . . . . . . . . . . . . . . . . . . . . . . . . . . . . . . . Salvage Created 121719 | 173 882 21 1466 567 1460 2189 993 3853 536 709 1556 1501 799 5637 1308 4211 9060 4651 296 2276 11041 856 934 18246 723 958 2991 4318 1690 7551 16199 12068 Parts 4227 | 12 64 . 128 40 89 123 31 198 25 38 107 50 24 303 38 257 292 208 33 95 435 19 63 436 41 63 175 222 84 218 170 146 Haulers Intercepted 37 | . . . 1 . 3 4 . 6 . . . . . 3 . 3 . . . 2 2 . . . . . 2 1 . 1 9 . Recyclers Shooed 7 | 1 . . 1 . . 1 1 2 . . . . . 1 . . . . . . . . . . . . . . . . . . Parts Field Recycled . | . . . . . . . . . . . . . . . . . . . . . . . . . . . . . . . . . Retrieved Matter . | . . . . . . . . . . . . . . . . . . . . . . . . . . . . . . . . . Parts Self-Destructed 204 | . . . . . . . . . 15 42 . . 24 . . . . . . . . 19 63 . 41 . . . . . . . Prevented 1 | . . . . . . . . . . 1 . . . . . . . . . . . . . . . . . . . . . . Parts Restored . | . . . . . . . . . . . . . . . . . . . . . . . . . . . . . . . . . Kills | -11 -10 -10 -9 -9 -8 -8 -8 -6 -6 -6 -6 -6 -5 -5 -5 -5 -5 -5 -5 -5 -4 -4 -4 -4 -3 -3 -3 -2 -2 -2 -1 -1 ------- Run | Yrd Mat Min Mat Min Mat Sto Rec Fac Low Low Zio Dee Pro Fac Was Fac Ext Cet Arc Hub Fac Upp Upp War Pro Res Tes Res Qua Sec Acc Com Combat Hostiles Destroyed 1992 | . 33 6 59 17 53 83 6 61 6 18 12 24 17 68 5 58 149 68 4 38 174 10 22 318 19 23 50 60 21 125 216 169 Guns 257 | . 33 6 59 17 53 83 6 . . . . . . . . . . . . . . . . . . . . . . . . . Cannons 1381 | . . . . . . . . 57 6 17 10 23 14 61 5 56 143 67 4 30 165 10 22 194 19 23 50 60 21 94 124 106 AOE 15 | . . . . . . . . 1 . 1 2 1 . 3 . 1 . . . . 5 . . . . . . . . 1 . . Classes Destroyed 42 | 2 4 1 4 . 4 2 2 5 2 1 3 1 . . 1 . . 1 . . . . . 5 . . 2 1 1 . . . Worker 21 | . . . 1 . . 1 . 5 . . . . . 4 . 4 . . . 2 . . . . . . . 2 . . 2 . Builder 12 | . . . . . . . . 4 . . . . . 4 . 3 . . . . . . . . . . 1 . . . . . Tunneler 9 | 4 1 . . . . . . 1 . . . . . 1 . . . . . 1 . . . . . . . . . . 1 . Hauler 37 | . . . 1 . 3 4 . 6 . . . . . 3 . 3 . . . 2 2 . . . . . 2 1 . 1 9 . Recycler 28 | 1 . . . . . 1 10 4 . . . . . 4 . 3 2 . . . . . . . . . . . . . 2 1 Carrier 32 | . . . . . . . . . . . . . . . . . . 3 . 1 2 . . . . . . 1 . 2 9 14 Minesweeper 1 | . . . . . . . . . . 1 . . . . . . . . . . . . . . . . . . . . . . Mechanic 26 | . . . . . . 1 . . . . . . . 2 . 2 3 2 . 2 1 . . 4 . . . . . 1 2 6 Operator 29 | . 1 . . . 1 . . . . . . . . 3 . 1 1 . 8 . 1 . . . . 1 1 2 3 2 2 2 Turret 10 | . . . . . . . . . . . . . . . . . . . . . . . . . . . . 10 . . . . Watcher 52 | . . . 2 . 1 1 . 1 . . . . . . . 1 2 2 . 3 4 . . . . . 3 10 3 4 9 6 Swarmer 207 | . 9 . 12 3 4 6 . 14 4 8 . . 1 5 . 15 8 . . 4 20 1 5 33 1 . 3 9 . 9 15 18 Cutter 16 | . . . . . . . . 1 . . . . . . . 2 . . . . 3 . . . . 3 . . . . 7 . Saboteur 46 | . . . . . . . . 3 . . . . . 1 . 1 2 5 . . 6 . . 12 . . . . . 4 5 7 Grunt 698 | . 23 . 37 14 37 45 . 25 . 9 . . 12 26 . 10 65 18 . 12 59 4 8 87 12 . 18 14 3 27 85 48 Brawler 106 | . . . . . 1 5 . 3 . . . . 2 2 . . 10 7 . . 12 . 2 21 1 . 3 2 . 12 13 10 Duelist 77 | . . . . . 2 6 . 1 . . . . . 3 . 1 8 1 . 2 8 3 2 10 1 . 1 1 1 7 11 8 Protector 65 | . . . . . . 6 . 2 . . . . . 2 . 2 8 3 . 1 6 . 1 14 . . 3 . . 3 9 5 Researcher 19 | . . . . . . . . . . . . . . . . . . . . . . . . . . . 10 . 4 5 . . Sentry 151 | . . . 10 . 7 11 3 6 . 1 . . 1 8 . 2 15 8 4 6 13 2 2 . 2 3 3 2 3 8 27 4 Demolisher 15 | . . . . . . . . . . . . . . . . . 3 3 . . . . . 9 . . . . . . . . Specialist 30 | . . . . . . . . 1 . . . . . 4 . 2 11 3 . . 3 . . 2 . . 4 . . . . . Hunter 116 | . . . . . 1 4 . . . . . . . 7 . 11 4 6 . 4 13 . . 19 . 2 3 13 2 9 13 5 Programmer 191 | . . . . . . . . 4 . . . . . 9 . 9 9 7 . 4 27 . 1 29 1 10 9 15 11 14 12 20 Heavy 16 | . . . . . 1 . . 1 . . . . . 1 . 1 . . . 2 2 . . . . 1 . 2 . 2 2 1 Behemoth 24 | . . . . . . . . . 1 . . . 1 . . 1 2 . . . 1 . 1 6 1 1 . 1 . 2 3 3 Compactor 5 | . . . . . . . . . . . . . . . 5 . . . . . . . . . . . . . . . . . Cetus Guard 6 | . . . . . . . . . . . . . . . . . . 6 . . . . . . . . . . . . . . Quarantine Guard 1 | . . . . . . . . . . . . . . . . . . . . . . . . . . 1 . . . . . . S7 Guard 3 | . . . . . . . . . . . . . . . . . . . . . . . . . . . . . . 3 . . M Guard 2 | . . . . . . . . . . . . . . . . . . . . . . . . . . . . . . . . 2 Enhanced Grunt 1 | . . . . . . . . . . . . . . . . . . 1 . . . . . . . . . . . . . . Lightning 3 | . . . . . . . . . . . . . . . . . . . . 3 . . . . . . . . . . . . Tracker 15 | . . . . . . . . . . . . . . . . . . . . . . . . . . . . . . 11 4 . Combat Programmer 11 | . . . . . . . . . . . . . . . . . . . . . . . . . . . . . . 5 4 2 Investigator 4 | . . . . . . . . . . . . . . . . . . . . . . . . . . . . . . 1 2 1 Striker 39 | . . . . . . . . . . . . . . . . . . . . . . . . 16 . . 2 . . 5 4 12 Executioner 39 | . . . . . . . . . . . . . . . . . . . . . . . . 15 . . . . . 2 2 20 Alpha 7 5 | . . . . . . . . . . . . . . . . . . . . . . . . . . . 1 . . 2 . 2 Fortress 1 | . . . . . . . . . . . . . . . . . . . . . . . . . . . . . 1 . . . Subdweller 1 | . 1 . . . . . . . . . . . . . . . . . . . . . . . . . . . . . . . Scientist 2 | . . . . . . . 2 . . . . . . . . . . . . . . . . . . . . . . . . . Scrapper 3 | . . . . . . . 3 . . . . . . . . . . . . . . . . . . . . . . . . . Zionite 44 | . . . . . . . . . . . 44 . . . . . . . . . . . . . . . . . . . . . Z-Light 11 | . . . . . . . . . . . . 11 . . . . . . . . . . . . . . . . . . . . Tinkerer 2 | . . . . . . . . . . . . . . . . . . . . . . . . 2 . . . . . . . . Assembled 18 | . . 6 . . . . . . . . . 12 . . . . . . . . . . . . . . . . . . . . Surgeon 1 | . . . . . . . . . . . . . . . . . . . . . . . . 1 . . . . . . . . Wasp 1 | . . . . . . . . . . . 1 . . . . . . . . . . . . . . . . . . . . . Thug 24 | . . . . 1 . . . . . . 1 . . . . . 2 . . . . . . 20 . . . . . . . . Savage 4 | . . . . . . . . . . . 1 . . . . . 1 . . . . . . 2 . . . . . . . . Butcher 4 | . . . . . . . . . . . . . . . . . 2 . . . . . . 2 . . . . . . . . Bouncer 8 | . . . . . . . . . . . . . . . . . . . . . . . . 8 . . . . . . . . Martyr 1 | . . . . . . . . . . . 1 . . . . . . . . . . . . . . . . . . . . . Guerrilla 3 | . . . . . . . . . . . . . . . . . 3 . . . . . . . . . . . . . . . Marauder 2 | . . . . . . . . . . . 2 . . . . . . . . . . . . . . . . . . . . . Fireman 1 | . . . . . . . . . . . 1 . . . . . . . . . . . . . . . . . . . . . Mutant 12 | . . . . . . . . . 1 . 5 . . . . . . . . . . . . 6 . . . . . . . . Sapper 3 | . . . . . . . . . . . . . . . . . . . . . . . . 3 . . . . . . . . Knight 2 | . . . . . . . . . . . . . . . . . . . . . . . . 2 . . . . . . . . Troll 1 | . . . . . . . . . . . . . . . . . . . . . . . . 1 . . . . . . . . Best Kill Streak 74 | 4 7 2 8 11 14 20 10 9 5 10 15 11 9 28 5 15 54 17 4 9 41 7 12 74 10 5 22 36 10 30 74 34 Combat Bots Only 74 | . 7 2 8 11 10 20 2 9 5 10 6 11 9 16 5 11 48 17 1 7 39 7 12 74 10 5 18 14 9 29 49 28 Max Kills in Single Turn 3 | 1 2 1 3 3 2 3 2 2 1 2 1 1 2 3 1 2 2 2 1 2 3 1 1 3 1 1 1 1 1 2 2 2 Gunslinging 2 | . 1 . 1 2 1 1 . . . . . . . . . . . . . . . . . . . . . . . . . . Exploded 3 | . . . . . . . . 1 . 1 1 1 . 2 . 1 . . . . 3 . . . . . . . . 1 . . Melee . | . . . . . . . . . . . . . . . . . . . . . . . . . . . . . . . . . Uniques/NPCs Destroyed 11 | . . . . . . . . . . . . 1 . . . 1 . . . . 1 . . 3 . 2 . 1 . . . 2 Z-Imprinter (-6/Deep Caves) 1B-0RG (-5/Factory) V4-D3R (-4/Factory) Warlord (-4/Warlord) Fake God Mode (-4/Warlord) EX-DEC (-4/Warlord) BL-1NK (-3/Research) CL-0N3 (-3/Research) GL-D0S (-2/Research) MAIN.C Shell (-1/Command) MAIN.C (-1/Command) Combat | -11 -10 -10 -9 -9 -8 -8 -8 -6 -6 -6 -6 -6 -5 -5 -5 -5 -5 -5 -5 -5 -4 -4 -4 -4 -3 -3 -3 -2 -2 -2 -1 -1 -------- Run | Yrd Mat Min Mat Min Mat Sto Rec Fac Low Low Zio Dee Pro Fac Was Fac Ext Cet Arc Hub Fac Upp Upp War Pro Res Tes Res Qua Sec Acc Com Hostile Shots Fired 4848 | . 73 9 74 22 113 144 23 169 16 36 73 41 19 151 . 381 241 221 4 159 523 22 44 733 32 41 85 112 38 473 396 380 Missed 2442 | . 31 6 34 10 42 72 5 64 4 16 35 14 7 82 . 140 106 105 2 65 336 10 23 460 16 26 45 50 17 163 182 274 Hits 2406 | . 42 3 40 12 71 72 18 105 12 20 38 27 12 69 . 241 135 116 2 94 187 12 21 273 16 15 40 62 21 310 214 106 Melee 50 | . . 2 . . 2 . . 2 . . . . . 1 . 17 1 1 . 6 5 . . 3 . 1 . . . 1 5 3 Projectile 2356 | . 42 1 40 12 69 72 18 103 12 20 38 27 12 68 . 224 134 115 2 88 182 12 21 270 16 14 40 62 21 309 209 103 AOE 21 | . . . . . . 1 . 2 . . 2 . . . . . 2 . . . . . . 6 . 2 . . . 2 3 1 Critical Strikes 117 | . 1 . . . 4 3 1 2 . 2 2 . . 3 . 5 5 8 . 9 10 . . 17 2 . . 5 1 13 16 8 Actively Blocked 35 | . . . . . . . . . . . . . . . . . . . . . . . . . . . . 3 1 13 16 2 Part Disruptions 2 | . . . . . . . . . . . . . . . . . . . . . . . . 1 . . . . . . . 1 Damage Taken 35745 | . 440 69 440 128 1112 917 380 1721 189 241 404 682 195 1025 . 3612 1971 1803 38 2970 3207 131 232 3469 96 197 305 717 337 3341 1975 3401 Core 27676 | . 364 53 354 103 900 729 311 1379 151 177 273 549 161 811 . 2405 1549 1304 30 2246 2543 101 180 2716 71 153 241 577 269 2628 1559 2789 Absorbed by Shields 10931 | . . . . . 180 288 32 396 48 80 96 104 44 200 . 808 689 556 8 260 564 48 72 809 89 187 315 428 120 2209 1542 759 Redirected to Core 24273 | . 237 53 275 82 742 621 256 1138 123 143 250 436 118 702 . 2165 1409 1130 30 2107 2264 89 169 2545 67 144 197 477 234 2385 1378 2307 Redirected to Shielding 16 | . . . . . . . . . . . . . . . . . . . . . 16 . . . . . . . . . . . Ignored by Resistances 10710 | . . . . . . . . . . 37 34 43 . 77 . 1023 . . . . 473 86 126 1625 159 134 294 374 121 1912 1435 2757 Regen/Repaired (Parts) 575 | . . . 2 . . 15 9 32 . 9 . 46 . 12 . 45 . 31 54 46 167 . . 9 . . . . . 59 . 39 Core Remaining (%) 77 | 100 . 77 . 100 . . 88 . . . . . 100 . . . . . . 24 . . . . 100 . 100 . . 43 . 42 Volleys Fired 4044 | 12 45 10 57 18 77 113 29 164 22 31 84 51 23 157 21 196 315 154 23 88 386 27 42 511 37 60 100 144 59 313 355 320 Largest 4 | 2 3 3 4 4 4 4 4 2 1 1 1 2 1 1 1 1 1 1 1 1 2 1 1 2 1 1 2 1 2 2 1 2 Hottest 350 | 60 195 195 260 260 260 260 260 259 211 211 211 284 136 342 176 176 176 263 350 350 186 110 110 110 110 110 110 110 110 298 298 298 Shots Fired 5004 | 24 105 30 228 71 306 452 79 164 22 31 84 58 23 157 20 195 313 150 23 88 384 27 40 534 36 60 104 144 63 313 355 321 Gun 1288 | 24 105 30 228 71 306 452 71 . . . . 1 . . . . . . . . . . . . . . . . . . . . Cannon 3665 | . . . . . . . 8 164 22 31 84 51 23 157 20 195 313 150 23 88 382 27 40 501 36 60 100 144 59 312 355 320 Launcher . | . . . . . . . . . . . . . . . . . . . . . . . . . . . . . . . . . Special 51 | . . . . . . . . . . . . 6 . . . . . . . . 2 . . 33 . . 4 . 4 1 . 1 Kinetic 935 | 12 . . . . . . . 111 . 22 . . . 23 20 195 313 100 18 46 . . . . . . . . . 36 . 39 Thermal 2301 | 12 105 30 228 71 306 452 71 53 22 9 84 58 23 120 . . . 50 5 . 369 27 40 152 . . . . . 14 . . Explosive . | . . . . . . . . . . . . . . . . . . . . . . . . . . . . . . . . . Electromagnetic 1169 | . . . . . . . 8 . . . . . . 14 . . . . . 42 13 . . 349 . . . . . 107 355 281 Entropic 554 | . . . . . . . . . . . . . . . . . . . . . . . . . 36 60 100 144 59 155 . . Robot Hit Streak 75 | 9 16 11 43 17 32 37 75 38 9 22 22 30 26 36 28 15 53 57 13 58 67 36 42 53 19 37 47 42 38 39 51 62 Robot Miss Streak 8 | 1 5 4 8 6 4 6 2 4 2 4 3 3 2 4 . 3 3 1 1 1 2 . 1 2 1 1 1 4 1 6 2 1 Penetration Max 1 | . . . . . . . . . . . . . . 1 1 1 . 1 . 1 1 . . . . . . . . . . . Secondary Targets 50 | . 2 1 10 4 13 20 . . . . . . . . . . . . . . . . . . . . . . . . . . Max Gunslinging Chain 2 | . 1 1 2 2 1 2 . . . . . . . . . . . . . . . . . . . . . . . . . . Capacitor 1286 | . . . . . . . . . . . . . . . . . . . . . . . . . 36 60 96 144 55 260 355 280 Shots Hit Robots 4220 | 19 86 24 156 48 256 371 54 141 14 24 80 49 23 118 20 151 274 125 19 80 334 27 38 484 34 59 91 119 53 249 307 293 Core Hits 3168 | 6 135 30 262 81 428 667 78 158 8 22 71 45 31 104 5 65 112 62 10 28 136 7 19 177 14 14 33 44 15 85 105 111 Critical Kills 29 | . . . . . . . . . . . . . . . . . . 2 2 3 18 . 1 3 . . . . . . . . Critical Parts Destroyed 50 | 1 . . . . . . . . . . . . . . . . . 2 1 7 24 2 . 13 . . . . . . . . Critical Strikes 111 | 1 . . . . . . . . . . . . . . . 6 14 9 3 11 44 2 2 18 . . . . . . . 1 Destroy 86 | 1 . . . . . . . . . . . . . . . . . 5 3 11 44 2 2 18 . . . . . . . . Blast 25 | . . . . . . . . . . . . . . . . 6 14 4 . . . . . . . . . . . . . 1 Melee Attacks . | . . . . . . . . . . . . . . . . . . . . . . . . . . . . . . . . . Impact . | . . . . . . . . . . . . . . . . . . . . . . . . . . . . . . . . . Slashing . | . . . . . . . . . . . . . . . . . . . . . . . . . . . . . . . . . Piercing . | . . . . . . . . . . . . . . . . . . . . . . . . . . . . . . . . . Sneak Attacks . | . . . . . . . . . . . . . . . . . . . . . . . . . . . . . . . . . Combat Hostiles . | . . . . . . . . . . . . . . . . . . . . . . . . . . . . . . . . . Follow-up Attacks . | . . . . . . . . . . . . . . . . . . . . . . . . . . . . . . . . . Damage Inflicted 535318 | 238 1173 286 2624 735 4588 6726 1012 10019 1881 2831 6463 3802 2372 14867 1869 15986 37761 20868 2958 11258 49086 3679 5104 67228 7748 13885 23845 30791 12123 53866 62366 55280 Guns 17260 | 238 1173 286 2624 735 4588 6726 857 . . . . 33 . . . . . . . . . . . . . . . . . . . . Cannons 514340 | . . . . . . . 155 9603 1881 2554 5901 3475 2372 14020 1869 15800 37761 20868 2958 11258 48200 3679 5104 67228 7748 13885 23845 30791 12123 53616 62366 55280 Explosions 3399 | . . . . . . . . 141 . 277 562 250 . 847 . 186 . . . . 886 . . . . . . . . 250 . . Melee . | . . . . . . . . . . . . . . . . . . . . . . . . . . . . . . . . . Ramming 275 | . . . . . . . . 275 . . . . . . . . . . . . . . . . . . . . . . . . Kinetic 104678 | 148 . . . . . . . 6159 . 1873 . . . 2296 1869 15800 37761 14062 2658 7096 . . . . . . . . . 7730 . 7226 Thermal 129707 | 90 1173 286 2624 735 4588 6726 857 3549 1881 958 6463 3802 2372 11439 . . . 6806 300 . 45869 3679 5104 16790 . . . . . 3616 . . Explosive 1194 | . . . . . . . . . . . . . . . . 102 . . . . 842 . . . . . . . . 250 . . Electromagnetic 184497 | . . . . . . . 155 36 . . . . . 1132 . 84 . . . 4162 2375 . . 50438 . . . . . 15695 62366 48054 Impact . | . . . . . . . . . . . . . . . . . . . . . . . . . . . . . . . . . Slashing . | . . . . . . . . . . . . . . . . . . . . . . . . . . . . . . . . . Piercing . | . . . . . . . . . . . . . . . . . . . . . . . . . . . . . . . . . Entropic 114967 | . . . . . . . . . . . . . . . . . . . . . . . . . 7748 13885 23845 30791 12123 26575 . . Highest Corruption 15 | . . . 3 3 . . . 2 2 2 2 . . 3 12 14 6 15 15 6 4 4 4 13 14 . 3 3 5 5 . . Average Corruption 5 | . . . 2 3 . . . 1 2 2 2 . . 2 10 6 4 7 10 2 2 4 4 9 13 . 2 1 4 5 . . Corruption Purged 40 | . . . . . . . . . . . . . . . . 16 . . 15 9 . . . . . . . . . . . . Corruption Blocked . | . . . . . . . . . . . . . . . . . . . . . . . . . . . . . . . . . Effects 416 | . . . 2 20 . . . 18 9 8 1 . . 19 5 27 43 26 71 2 18 5 5 83 13 . 6 9 23 3 . . Message Errors 108 | . . . . 2 . . . 5 1 5 . . . 5 . 7 7 9 25 1 4 3 . 20 5 . 1 2 5 1 . . Matter Fused 90 | . . . . 7 . . . 3 3 1 . . . 6 1 5 10 3 19 1 2 1 1 15 4 . 1 2 4 1 . . Heat Flow Errors 49 | . . . 1 3 . . . 1 2 . . . . 2 . 5 9 2 6 . 1 . . 12 1 . 1 . 3 . . . Energy Discharges 57 | . . . 1 1 . . . 1 2 . . . . 3 . 5 9 3 9 . 1 . 1 11 1 . 1 2 6 . . . Parts Rejected 2 | . . . . . . . . 1 . . . . . . . . . . . . . . . 1 . . . . . . . . Parts Fused 4 | . . . . . . . . 2 . . . . . . . . . . 2 . . . . . . . . . . . . . Data Loss (minor) 51 | . . . . 4 . . . 3 1 2 . . . 2 1 3 4 4 8 . 4 . 1 7 1 . 1 2 3 . . . Data Loss (major) 18 | . . . . 1 . . . 1 . . 1 . . 1 1 1 2 . 1 . 2 . . 6 . . 1 . . . . . Alerts 7 | . . . . 1 . . . . . . . . . . . . . . 1 . . 1 . 1 . . . 1 2 . . . Misdirections 3 | . . . . . . . . . . . . . . . 1 . . 1 . . . . . 1 . . . . . . . . Weapon Failures 27 | . . . . 1 . . . 1 . . . . . . 1 1 2 4 . . 4 . 2 9 1 . . . . 1 . . Overload Shots . | . . . . . . . . . . . . . . . . . . . . . . . . . . . . . . . . . Overflow Damage 120543 | . . . . . . . 24 400 196 272 101 228 41 1437 . 2978 8166 3790 622 2764 9750 653 626 14599 1597 4194 8395 10828 4053 11710 19255 13864 Projectiles 120181 | . . . . . . . 24 348 196 267 90 228 41 1251 . 2952 8166 3790 622 2764 9668 653 626 14599 1597 4194 8395 10828 4053 11710 19255 13864 Explosions 315 | . . . . . . . . 5 . 5 11 . . 186 . 26 . . . . 82 . . . . . . . . . . . Melee 47 | . . . . . . . . 47 . . . . . . . . . . . . . . . . . . . . . . . . Knockbacks 273 | . . . . . . . . 56 . 17 . . . 10 . 58 61 39 4 14 . . . . . . . . . 3 . 11 Impact 3 | . . . . . . . . 3 . . . . . . . . . . . . . . . . . . . . . . . . Kinetic 236 | . . . . . . . . 51 . 13 . . . 9 . 51 51 31 4 12 . . . . . . . . . 3 . 11 Secondary 34 | . . . . . . . . 2 . 4 . . . 1 . 7 10 8 . 2 . . . . . . . . . . . . Self-Inflicted Damage 441 | . . . . . . . . 60 . . 46 56 . . . 63 . . . . 21 . . . . . . . . 195 . . Shots 9 | . . . . . . . . 1 . . 2 1 . . . 1 . . . . 2 . . . . . . . . 2 . . Rammed 16 | . . . . . . . . 16 . . . . . . . . . . . . . . . . . . . . . . . . Targets Rammed 16 | . . . . . . . . 16 . . . . . . . . . . . . . . . . . . . . . . . . Kicked . | . . . . . . . . . . . . . . . . . . . . . . . . . . . . . . . . . Crushed . | . . . . . . . . . . . . . . . . . . . . . . . . . . . . . . . . . Highest Temperature 498 | . 172 42 147 176 192 40 24 377 406 391 411 275 40 426 141 292 416 498 295 430 53 8 6 288 171 130 73 106 156 146 146 172 Average Temperature 80 | . 56 23 42 41 22 11 9 90 126 152 133 79 16 63 71 76 72 158 133 134 10 6 3 41 47 38 25 23 82 93 136 136 Received Heat Transfer 4543 | . 192 20 120 60 448 411 195 365 20 110 81 167 55 128 . 512 524 162 . 115 324 15 27 207 57 15 15 11 7 87 55 38 Thermoelectric Energy+ 24132 | . . . . . . . . . . . . . . . . . . . . . . . . . . . . . . 3560 11102 9470 Effects 11 | . . . . . . . . 1 . . 1 . . 1 . . 1 5 . 2 . . . . . . . . . . . . Shutdowns 1 | . . . . . . . . . . . . . . 1 . . . . . . . . . . . . . . . . . . Energy Bleed 2 | . . . . . . . . . . . . . . . . . 1 1 . . . . . . . . . . . . . . Interference 6 | . . . . . . . . 1 . . 1 . . . . . . 4 . . . . . . . . . . . . . . Damage (major) 2 | . . . . . . . . . . . . . . . . . . . . 2 . . . . . . . . . . . . Siege Activations . | . . . . . . . . . . . . . . . . . . . . . . . . . . . . . . . . . Martial Activations . | . . . . . . . . . . . . . . . . . . . . . . . . . . . . . . . . . Shielding Activations . | . . . . . . . . . . . . . . . . . . . . . . . . . . . . . . . . . Robots Disrupted 2 | . . . . . . . . . . 1 . 1 . . . . . . . . . . . . . . . . . . . . Combat Hostiles 2 | . . . . . . . . . . 1 . 1 . . . . . . . . . . . . . . . . . . . . Robots Corrupted 351 | . . . . . . . . 3 . . . . . 4 . 1 7 1 . 11 4 . . 113 . . . . . 31 104 72 Combat Hostiles 321 | . . . . . . . . . . . . . . 4 . 1 6 . . 8 4 . . 113 . . . . . 30 92 63 Parts Fried 1579 | . . . . . . . 1 5 . . . . . 13 . . 7 5 . 44 14 . . 509 . . . . . 122 481 378 Impact Corruptions 36 | . . . . . . . . 4 . 1 . . . . . 5 15 3 . 3 . . . 5 . . . . . . . . Robots Melted 7 | . . . . . . . . 3 . . . . 3 . . . . 1 . . . . . . . . . . . . . . Combat Hostiles 7 | . . . . . . . . 3 . . . . 3 . . . . 1 . . . . . . . . . . . . . . Parts Melted 79 | . . . 2 . 1 7 1 14 . . 5 1 12 8 . . . 3 . . 9 1 1 9 . . . 1 . 1 3 . Heat Transferred 50620 | 200 1510 360 3330 910 5760 7981 845 2301 . 250 450 1241 3478 2178 . . . 1625 . . 11228 999 1387 3987 . . . . . 600 . . Parts Sabotaged 6 | . . . . . . . . . . . . . . . . . . 1 . . . . . . . . . . . 3 . 2 Parts Stolen . | . . . . . . . . . . . . . . . . . . . . . . . . . . . . . . . . . Parts Stripped . | . . . . . . . . . . . . . . . . . . . . . . . . . . . . . . . . . Power Chain Reactions 20 | . . . . . . . . 2 . 3 10 4 . 1 . . . . . . . . . . . . . . . . . . Alert | -11 -10 -10 -9 -9 -8 -8 -8 -6 -6 -6 -6 -6 -5 -5 -5 -5 -5 -5 -5 -5 -4 -4 -4 -4 -3 -3 -3 -2 -2 -2 -1 -1 ------- Run | Yrd Mat Min Mat Min Mat Sto Rec Fac Low Low Zio Dee Pro Fac Was Fac Ext Cet Arc Hub Fac Upp Upp War Pro Res Tes Res Qua Sec Acc Com Maximum Alert Level 5 | . 3 1 4 2 4 5 4 5 . . . . . 5 4 5 5 5 5 5 5 . . . . 1 4 5 4 5 5 5 Low Security (%) 10 | 100 27 75 24 . . . . . . . . . . 25 . . . . . . . . . . . 80 37 . . . . . Level 1 5 | . 24 24 20 38 14 . . . . . . . . 1 . . . . . . . . . . . 19 16 . . . . . Level 2 6 | . 21 . 13 61 21 5 . 24 . . . . . 4 . . . . . . . . . . . . 29 4 . 5 . . Level 3 12 | . 26 . 23 . 20 30 62 23 . . . . . 1 82 48 . . . 29 . . . . . . 14 23 24 10 . . Level 4 19 | . . . 16 . 43 17 37 49 . . . . . 28 17 19 21 . . 27 41 . . . . . 2 47 75 26 . . Level 5 21 | . . . . . . 25 . 1 . . . . . 37 . 21 . 8 100 33 1 . . . . . . 25 . 24 19 11 High Security 24 | . . . . . . 20 . . . . . . . . . 10 77 91 . 10 57 . . . . . . . . 33 80 88 Max Security . | . . . . . . . . . . . . . . . . . . . . . . . . . . . . . . . . . Sterilizations 6 | . . . 1 . 1 1 . . . . . . . . . . 1 . . . 1 . . . . . . . . . 1 . Peak Influence 10194 | 10 787 299 1461 569 1441 2889 1156 1663 . . . . . 2191 1100 2226 6270 7180 2872 2019 5316 . . . . 250 1124 1927 1243 4122 8525 10194 Initial 5456 | . . 299 27 569 208 603 1126 607 . . . . . 42 1100 739 1100 3511 2872 800 1100 . . . . 182 110 632 882 630 2472 5456 Average 2233 | 3 396 163 593 429 913 1539 1075 1056 . . . . . 1233 1079 1317 3637 5434 2440 1425 2523 . . . . 156 399 1372 1129 1945 5681 8515 Influence Increases 59208 | 25 1155 50 1847 375 1595 2698 245 1992 145 490 . . 370 2875 6 1967 5556 3829 149 1629 5046 200 512 6210 410 618 1392 1796 757 3926 6233 5110 Destroy 0b10 Robot/C 37760 | . 640 . 1180 340 1060 1540 60 1180 100 420 . . 340 1320 . 1000 3000 1740 80 720 3080 200 420 5160 380 420 1140 1200 500 2600 4360 3580 Destroy 0b10 Robot/NC 1430 | 25 10 . 20 . 25 70 50 115 10 5 . . . 125 . 55 85 35 40 55 70 . 5 90 . 5 50 75 30 55 180 145 Destroy Leader 5580 | . 160 . 286 20 258 340 . 242 20 20 . . 30 268 . 216 274 170 . 218 542 . 40 . 30 120 100 272 56 538 764 596 Allied During Kill 3110 | . . . . . . 12 . . . 45 . . . 46 . . 1372 1554 . . . . 32 . . . . . . . . 49 Trap Triggered on 0b10 40 | . . . . . . . . . . . . . . . . . . . . . . . . . . . . . . . . 40 Successful Hack 507 | . . . 6 . 7 31 . 35 . . . . . 37 . 51 4 . . 7 17 . . . . 54 . 42 48 24 50 94 Select Force Hacks 1170 | . 210 50 340 . 140 160 120 . . . . . . . . . . . . 150 . . . . . . . . . . . . Disable Machine 1440 | . . . . . . . 15 45 . . . . . 360 . 105 105 30 15 135 180 . . . . . 60 . 90 240 45 15 Anti-Garrison Action 850 | . . . . . . 200 . . . . . . . 150 . . . . . . . . . . . . . . . . 450 50 Destroy Structure 2021 | . . . . . . . . 25 . . . . . 404 6 210 86 180 14 74 302 . . . . 4 12 57 33 259 144 211 Advance Influence 200 | . . . . . . . . 200 . . . . . . . . . . . . . . . . . . . . . . . . Partial Spotted 615 | . 15 . . . 30 75 . 15 . . . . . 45 . 30 . . . 75 60 . . . . 15 30 30 . 120 45 30 Lose Combat Pursuer 4485 | . 120 . 15 15 75 270 . 135 15 . . . . 120 . 300 630 120 . 195 795 . 15 960 . . . 120 . 90 195 300 Influence Decreases 49467 | 25 386 748 457 1302 700 1238 2163 1300 854 480 964 . 302 752 1475 797 1522 2919 5042 1897 1860 2182 854 3356 5986 692 464 1350 1206 925 1830 3439 Entered New Map 37139 | . . 470 44 892 326 826 1763 564 616 182 964 . . 26 1425 317 1136 2759 4308 1487 1030 1968 634 2992 5846 88 86 492 688 491 1650 3069 Time Decay 10103 | 25 386 238 413 410 374 362 380 586 238 238 . . 302 571 50 470 206 20 734 410 380 214 180 364 140 604 368 398 368 434 180 60 Lost Part 30 | . . . . . . 10 . . . . . . . . . 10 . . . . . . . . . . . 10 . . . . Lost Ally 890 | . . 40 . . . 40 20 . . 60 . . . 50 . . 180 140 . . . . 40 . . . 10 . . . . 310 Purge Threat 1305 | . . . . . . . . 150 . . . . . 105 . . . . . . 450 . . . . . . 450 150 . . . Squads Dispatched 365 | . 11 1 14 1 15 21 . 15 . . . . . 14 . 18 34 22 . 24 47 . 1 . . 6 7 10 7 25 39 33 Investigation 55 | . 10 1 13 1 9 11 . 1 . . . . . 1 . 1 1 . . 4 . . . . . . . 1 1 . . . Extermination 34 | . . . . . . . . 4 . . . . . 3 . 3 . . . 3 3 . . . . 3 3 4 4 3 1 . Reinforcement 46 | . 1 . 1 . 2 . . 5 . . . . . 4 . 6 . . . 7 6 . . . . 3 1 2 . 3 4 1 Assault 210 | . . . . . 1 10 . 5 . . . . . 5 . 5 33 22 . 7 35 . 1 . . . 3 3 2 15 31 32 Garrison 14 | . . . . . 3 . . . . . . . . 1 . 3 . . . 3 3 . . . . . . . . . 1 . Intercept 6 | . . . . . . . . . . . . . . . . . . . . . . . . . . . . . . 4 2 . Searches Triggered . | . . . . . . . . . . . . . . . . . . . . . . . . . . . . . . . . . Unchained Authorized 7 | . . . . . . . . . . . . . . . . 1 . . . 1 1 . . . . 3 . 1 . . . . Construction Impeded 2 | . . . . . . . . . . . . . . 1 . 1 . . . . . . . . . . . . . . . . Haulers Reinforced 4 | . . . . . . . . 1 . . . . . 1 . . . . . . . . . . . . 1 . . . 1 . Active Scanning Responses . | . . . . . . . . . . . . . . . . . . . . . . . . . . . . . . . . . Cargo Convoy Interrupts 4 | . . . . . . . . 1 . . . . . 1 . 1 . . . . 1 . . . . . . . . . . . Stealth | -11 -10 -10 -9 -9 -8 -8 -8 -6 -6 -6 -6 -6 -5 -5 -5 -5 -5 -5 -5 -5 -4 -4 -4 -4 -3 -3 -3 -2 -2 -2 -1 -1 --------- Run | Yrd Mat Min Mat Min Mat Sto Rec Fac Low Low Zio Dee Pro Fac Was Fac Ext Cet Arc Hub Fac Upp Upp War Pro Res Tes Res Qua Sec Acc Com Distress Signals 50 | . 3 . 7 . 5 3 . . . . . . . 1 . 1 1 1 . 2 4 . . 1 . 1 2 4 1 4 5 4 Communications Jammed 148 | . . . . . 4 135 . 9 . . . . . . . . . . . . . . . . . . . . . . . . Distress Signals 132 | . . . . . 2 124 . 6 . . . . . . . . . . . . . . . . . . . . . . . . Times Spotted 2686 | . 47 8 68 15 70 104 7 83 7 18 75 25 19 81 6 99 198 136 8 67 259 10 21 357 18 24 64 83 28 174 245 262 Peak Tracking Total 43 | . 5 3 9 5 7 14 2 7 3 6 11 5 9 15 4 16 19 29 1 9 25 7 7 27 7 3 7 15 8 14 11 43 Tactical Retreats 153 | . 4 . 1 1 4 6 2 4 1 . 5 1 . 4 . 11 13 5 . 12 22 . 1 19 . . . 9 . 4 12 12 Traps | -11 -10 -10 -9 -9 -8 -8 -8 -6 -6 -6 -6 -6 -5 -5 -5 -5 -5 -5 -5 -5 -4 -4 -4 -4 -3 -3 -3 -2 -2 -2 -1 -1 ------- Run | Yrd Mat Min Mat Min Mat Sto Rec Fac Low Low Zio Dee Pro Fac Was Fac Ext Cet Arc Hub Fac Upp Upp War Pro Res Tes Res Qua Sec Acc Com Traps Triggered 43 | . . . 4 . . 1 . 9 . . . . . 3 . 1 4 . . . 5 . . 1 . 3 2 2 3 2 3 . Indirectly . | . . . . . . . . . . . . . . . . . . . . . . . . . . . . . . . . . Trap Hack Attempts . | . . . . . . . . . . . . . . . . . . . . . . . . . . . . . . . . . Triggered . | . . . . . . . . . . . . . . . . . . . . . . . . . . . . . . . . . Disarmed . | . . . . . . . . . . . . . . . . . . . . . . . . . . . . . . . . . Reprogrammed 4 | . . . . . . . . . . . . . . . . . . . . . . . . . . . . . . . . 4 Reused 4 | . . . . . . . . . . . . . . . . . . . . . . . . . . . . . . . . 4 Traps Extracted . | . . . . . . . . . . . . . . . . . . . . . . . . . . . . . . . . . Installed . | . . . . . . . . . . . . . . . . . . . . . . . . . . . . . . . . . Triggered 4 | . . . . . . . . . . . . . . . . . . . . . . . . . . . . . . . . 4 Objects Rigged 1 | . . . . . . . . . . . . . . . . . . . . 1 . . . . . . . . . . . . Machines | -11 -10 -10 -9 -9 -8 -8 -8 -6 -6 -6 -6 -6 -5 -5 -5 -5 -5 -5 -5 -5 -4 -4 -4 -4 -3 -3 -3 -2 -2 -2 -1 -1 ---------- Run | Yrd Mat Min Mat Min Mat Sto Rec Fac Low Low Zio Dee Pro Fac Was Fac Ext Cet Arc Hub Fac Upp Upp War Pro Res Tes Res Qua Sec Acc Com Machines Disabled 122 | . . . . . . . 1 3 . 4 4 2 1 25 . 7 8 3 1 9 12 . . 6 . . 4 . 6 16 7 3 Max in Single Turn 9 | . . . . . . . 1 2 . 1 1 1 1 9 . 1 1 1 1 1 4 . . 1 . . 1 . 2 2 1 2 Garrison Access 10 | . . . . . . 1 . 1 . . . . . 1 . . . . . 1 . . . . . . 1 . . . 5 . Phase Generator 1 | . . . . . . . . . . . . . . . . . . . . . . . . . . . . . . . . 1 Network Hub 3 | . . . . . . . . . . . . . . . . . . . . 3 . . . . . . . . . . . . Energy Cycler 1 | . . . . . . . . . . . . . . . . . . . . . . . . . . . . . . . 1 . Machines Repaired . | . . . . . . . . . . . . . . . . . . . . . . . . . . . . . . . . . Machines Dismantled 3 | . . . . . . . . . . . 3 . . . . . . . . . . . . . . . . . . . . . Machines Sabotaged 15 | . 3 1 5 . 1 2 . . . . . . . . . . . . . 3 . . . . . . . . . . . . Overloaded Fab Kills . | . . . . . . . . . . . . . . . . . . . . . . . . . . . . . . . . . Hacking | -11 -10 -10 -9 -9 -8 -8 -8 -6 -6 -6 -6 -6 -5 -5 -5 -5 -5 -5 -5 -5 -4 -4 -4 -4 -3 -3 -3 -2 -2 -2 -1 -1 --------- Run | Yrd Mat Min Mat Min Mat Sto Rec Fac Low Low Zio Dee Pro Fac Was Fac Ext Cet Arc Hub Fac Upp Upp War Pro Res Tes Res Qua Sec Acc Com Machines Accessed 123 | . 10 1 12 1 10 16 5 7 . 1 . . . 7 . 9 5 . 1 6 4 . . . . 4 3 6 6 3 1 5 Terminals 85 | . 7 1 7 . 5 11 . 5 . . . . . 6 . 7 5 . . 5 3 . . . . 3 2 4 5 3 1 5 Fabricators 7 | . . . . . . . . 1 . . . . . 1 . 2 . . . . 1 . . . . 1 . 1 . . . . Repair Stations 7 | . 1 . 2 . 2 2 . . . . . . . . . . . . . . . . . . . . . . . . . . Recycling Units 10 | . 2 . 1 . 1 2 4 . . . . . . . . . . . . . . . . . . . . . . . . . Scanalyzers 5 | . . . 2 . 2 . . . . . . . . . . . . . . . . . . . . . . . 1 . . . Garrison Access 5 | . . . . . . 1 . 1 . . . . . . . . . . . 1 . . . . . . 1 1 . . . . Total Hacks 306 | . 12 1 23 1 16 24 7 14 . 1 . . . 20 . 22 10 . 1 16 21 . . . . 21 4 34 27 9 9 13 Successful 143 | . 10 1 12 1 10 16 7 8 . 1 . . . 7 . 9 4 . 1 5 9 . . . . 7 2 8 10 2 5 8 Failed 163 | . 2 . 11 . 6 8 . 6 . . . . . 13 . 13 6 . . 11 12 . . . . 14 2 26 17 7 4 5 Catastrophic 36 | . . . 1 . 1 . . 1 . . . . . 2 . 3 . . . 4 4 . . . . 4 . 7 5 2 . 2 Database Lockouts . | . . . . . . . . . . . . . . . . . . . . . . . . . . . . . . . . . Manual 192 | . 12 1 21 . 16 19 4 12 . . . . . 17 . 13 4 1 . 12 13 . . . . 9 2 16 7 3 2 8 Terminals 239 | . 9 1 16 . 8 17 . 11 . . . . . 19 . 16 10 . . 12 19 . . . . 13 3 28 26 9 9 13 Fabricators 21 | . . . . . . . . 1 . . . . . 1 . 6 . . . . 2 . . . . 8 . 3 . . . . Repair Stations 9 | . 1 . 3 . 3 2 . . . . . . . . . . . . . . . . . . . . . . . . . . Recycling Units 15 | . 2 . 2 . 3 4 4 . . . . . . . . . . . . . . . . . . . . . . . . . Scanalyzers 5 | . . . 2 . 2 . . . . . . . . . . . . . . . . . . . . . . . 1 . . . Garrison Access 11 | . . . . . . 1 . 2 . . . . . . . . . . . 4 . . . . . . 1 3 . . . . Terminal Hacks 58 | . . . 1 1 1 5 3 2 . 1 . . . 4 . 3 3 . 1 . 6 . . . . 3 1 5 8 2 4 4 Record 2 | . . . . . . . 1 . . . . . . . . . . . 1 . . . . . . . . . . . . . Robot Analysis 1 | . . . 1 . . . . . . . . . . . . . . . . . . . . . . . . . . . . . Prototype ID Bank 2 | . . . . . . . . . . . . . . . . . . . . . . . . . . . . . 2 . . . Open Door 11 | . . . . 1 . 5 . . . 1 . . . . . . 2 . . . . . . . . . 1 . . 1 . . Level Access Points 1 | . . . . . . . . . . . . . . . . . . . . . . . . . . 1 . . . . . . Branch Access Points 3 | . . . . . 1 . . . . . . . . . . 1 . . . . . . . . . . . . . 1 . . Emergency Access Points 3 | . . . . . . . . . . . . . . . . . . . . . . . . . . . . . 1 . 1 1 Machine Index 1 | . . . . . . . . . . . . . . . . . . . . . . . . . . . . . . . . 1 Terminal Index 3 | . . . . . . . . . . . . . . . . 1 . . . . 1 . . . . 1 . . . . . . Garrison Index 1 | . . . . . . . . . . . . . . . . . . . . . . . . . . . . . 1 . . . Alert Level 6 | . . . . . . . . 1 . . . . . . . . 1 . . . 2 . . . . . . . 1 . . 1 Unreport Threat 10 | . . . . . . . . 1 . . . . . 2 . . . . . . 3 . . . . . . 3 1 . . . Locate Traps 4 | . . . . . . . . . . . . . . 1 . 1 . . . . . . . . . 1 . . . . 1 . Reprogram Traps 1 | . . . . . . . . . . . . . . . . . . . . . . . . . . . . . . . . 1 Dispatch Records 1 | . . . . . . . . . . . . . . . . . . . . . . . . . . . . . . . 1 . Patrol Status 1 | . . . . . . . . . . . . . . . . . . . . . . . . . . . . . . . 1 . Recall Assault 2 | . . . . . . . . . . . . . . . . . . . . . . . . . . . . 2 . . . . Hauler Manifests 1 | . . . . . . . . . . . . . . 1 . . . . . . . . . . . . . . . . . . Registered Components 1 | . . . . . . . . . . . . . . . . . . . . . . . . . . . . . 1 . . . Zone Layout 1 | . . . . . . . . . . . . . . . . . . . . . . . . . . . . . 1 . . . Release Object 2 | . . . . . . . 2 . . . . . . . . . . . . . . . . . . . . . . . . . Fabricator Hacks 2 | . . . . . . . . . . . . . . . . 1 . . . . . . . . . 1 . . . . . . Network Status 1 | . . . . . . . . . . . . . . . . 1 . . . . . . . . . . . . . . . . Build 1 | . . . . . . . . . . . . . . . . . . . . . . . . . . 1 . . . . . . Repair Station Hacks . | . . . . . . . . . . . . . . . . . . . . . . . . . . . . . . . . . Recycling Unit Hacks . | . . . . . . . . . . . . . . . . . . . . . . . . . . . . . . . . . Scanalyzer . | . . . . . . . . . . . . . . . . . . . . . . . . . . . . . . . . . Garrison Access Hacks 3 | . . . . . . . . 1 . . . . . . . . . . . 1 . . . . . . 1 . . . . . Seal Access 3 | . . . . . . . . 1 . . . . . . . . . . . 1 . . . . . . 1 . . . . . Unauthorized Hacks 79 | . 10 1 11 . 8 11 4 5 . . . . . 3 . 5 1 . . 4 3 . . . . 3 . 3 2 . 1 4 Terminals 51 | . 7 1 6 . 4 6 . 4 . . . . . 2 . 4 1 . . 4 2 . . . . 2 . 2 1 . 1 4 Assimilate 5 | . . . . . . 2 . . . . . . . 1 . 1 . . . . . . . . . . . . . . . 1 Botnet 20 | . . . . . . . . 4 . . . . . 1 . 3 1 . . . 2 . . . . 2 . 2 1 . 1 3 Detonate 1 | . . . . . . . . . . . . . . . . . . . . 1 . . . . . . . . . . . . Sabotage 23 | . 5 1 6 . 4 4 . . . . . . . . . . . . . 3 . . . . . . . . . . . . Search 2 | . 2 . . . . . . . . . . . . . . . . . . . . . . . . . . . . . . . Fabricators 6 | . . . . . . . . 1 . . . . . 1 . 1 . . . . 1 . . . . 1 . 1 . . . . Haulers 6 | . . . . . . . . 1 . . . . . 1 . 1 . . . . 1 . . . . 1 . 1 . . . . Repair Stations 6 | . 1 . 2 . 1 2 . . . . . . . . . . . . . . . . . . . . . . . . . . Patch 6 | . 1 . 2 . 1 2 . . . . . . . . . . . . . . . . . . . . . . . . . . Recycling Units 10 | . 2 . 1 . 1 2 4 . . . . . . . . . . . . . . . . . . . . . . . . . Tunnel 10 | . 2 . 1 . 1 2 4 . . . . . . . . . . . . . . . . . . . . . . . . . Scanalyzers 5 | . . . 2 . 2 . . . . . . . . . . . . . . . . . . . . . . . 1 . . . Researchers 1 | . . . . . . . . . . . . . . . . . . . . . . . . . . . . . 1 . . . Extract 4 | . . . 2 . 2 . . . . . . . . . . . . . . . . . . . . . . . . . . . Garrison Access 1 | . . . . . . 1 . . . . . . . . . . . . . . . . . . . . . . . . . . Jam 1 | . . . . . . 1 . . . . . . . . . . . . . . . . . . . . . . . . . . Data Cores Recovered 12 | . 1 . . . 1 . . . . . . . . 1 . 1 . . . . . . . . . 1 1 1 3 1 1 . Used 5 | . . . . . 1 . . . . . . . . . . 1 . . . . . . . . . . . 1 1 . 1 . Hacking Detections 61 | . . . 3 . 3 5 . 7 . . . . . 5 . 6 5 . . 2 3 . . . . 4 1 5 5 2 1 4 Full Trace Events 9 | . . . 1 . 2 2 . 1 . . . . . . . 1 . . . 1 . . . . . . . . 1 . . . Feedback Events 2 | . . . . . . . . 1 . . . . . . . 1 . . . . . . . . . . . . . . . . Corruption 2 | . . . . . . . . 1 . . . . . . . 1 . . . . . . . . . . . . . . . . Feedback Blocked . | . . . . . . . . . . . . . . . . . . . . . . . . . . . . . . . . . Robot Schematics Acquired 63 | . . . . . . . . . . . 3 . . . . . . . . . . . . . . 51 2 . . 7 . . Robots Built 1 | . . . . . . . . . . . . . . . . . . . . . . . . . . 1 . . . . . . Authchips . | . . . . . . . . . . . . . . . . . . . . . . . . . . . . . . . . . Time 93 | . . . . . . . . . . . . . . . . . . . . . . . . . . 93 . . . . . . Total Robot Build Rating 7 | . . . . . . . . . . . . . . . . . . . . . . . . . . 7 . . . . . . Part Schematics Acquired 55 | . . . 3 . 5 . . . . . 15 . . . . . . . . . . . . . . . 18 . 4 10 . . Parts Built . | . . . . . . . . . . . . . . . . . . . . . . . . . . . . . . . . . Authchips . | . . . . . . . . . . . . . . . . . . . . . . . . . . . . . . . . . Time . | . . . . . . . . . . . . . . . . . . . . . . . . . . . . . . . . . Total Part Build Rating . | . . . . . . . . . . . . . . . . . . . . . . . . . . . . . . . . . Part Studies Acquired . | . . . . . . . . . . . . . . . . . . . . . . . . . . . . . . . . . Parts Repaired . | . . . . . . . . . . . . . . . . . . . . . . . . . . . . . . . . . Time . | . . . . . . . . . . . . . . . . . . . . . . . . . . . . . . . . . Parts Recycled . | . . . . . . . . . . . . . . . . . . . . . . . . . . . . . . . . . Recycled Matter . | . . . . . . . . . . . . . . . . . . . . . . . . . . . . . . . . . Retrieved Matter . | . . . . . . . . . . . . . . . . . . . . . . . . . . . . . . . . . Retrieved Components . | . . . . . . . . . . . . . . . . . . . . . . . . . . . . . . . . . Parts Scanalyzed . | . . . . . . . . . . . . . . . . . . . . . . . . . . . . . . . . . Part Schematics Acquired . | . . . . . . . . . . . . . . . . . . . . . . . . . . . . . . . . . Parts Damaged . | . . . . . . . . . . . . . . . . . . . . . . . . . . . . . . . . . Bothacking | -11 -10 -10 -9 -9 -8 -8 -8 -6 -6 -6 -6 -6 -5 -5 -5 -5 -5 -5 -5 -5 -4 -4 -4 -4 -3 -3 -3 -2 -2 -2 -1 -1 ------------ Run | Yrd Mat Min Mat Min Mat Sto Rec Fac Low Low Zio Dee Pro Fac Was Fac Ext Cet Arc Hub Fac Upp Upp War Pro Res Tes Res Qua Sec Acc Com Used RIF Installer . | . . . . . . . . . . . . . . . . . . . . . . . . . . . . . . . . . Robots Hacked . | . . . . . . . . . . . . . . . . . . . . . . . . . . . . . . . . . Non-combat . | . . . . . . . . . . . . . . . . . . . . . . . . . . . . . . . . . Combat . | . . . . . . . . . . . . . . . . . . . . . . . . . . . . . . . . . Robot Hacks Applied . | . . . . . . . . . . . . . . . . . . . . . . . . . . . . . . . . . Relay Couplers Released 5 | . . . . . . . . . . . . . . 1 . 2 . . . . . . . . . . . . . . 2 . Machine Destruction 3 | . . . . . . . . . . . . . . 1 . . . . . . . . . . . . . . . . 2 . Programmers 2 | . . . . . . . . . . . . . . . . 2 . . . . . . . . . . . . . . . . Fabnet Peak Effective % . | . . . . . . . . . . . . . . . . . . . . . . . . . . . . . . . . . Robots Rewired 23 | . . . . . . . . . 3 . . . 2 . . . 10 . . . . 2 2 4 . . . . . . . . Allies Hacked 3 | . . . . . . . . . . . . . . . . . 2 . . . . . . . . . . . . . . 1 Hacks Repelled . | . . . . . . . . . . . . . . . . . . . . . . . . . . . . . . . . . Allies | -11 -10 -10 -9 -9 -8 -8 -8 -6 -6 -6 -6 -6 -5 -5 -5 -5 -5 -5 -5 -5 -4 -4 -4 -4 -3 -3 -3 -2 -2 -2 -1 -1 -------- Run | Yrd Mat Min Mat Min Mat Sto Rec Fac Low Low Zio Dee Pro Fac Was Fac Ext Cet Arc Hub Fac Upp Upp War Pro Res Tes Res Qua Sec Acc Com Total Allies 73 | . . 2 . . . 4 . . 3 . 4 . 2 1 . . 19 5 . . . 2 2 4 . 1 . . . . . 24 Largest Group 15 | . . 1 . . . 4 2 . 3 3 4 . 2 2 . . 8 8 . . . 2 2 4 . 1 1 . . . . 15 Highest-Rated Group 701 | . . 31 . . . 78 16 . 87 87 93 . 59 59 . . 333 701 . . . 95 95 223 . 91 91 . . . . 218 Highest-Rated Ally 159 | . . 31 . . . 31 10 . 29 29 31 . 30 30 . . 159 159 . . . 48 48 64 . 91 91 . . . . 45 Total Orders 21 | . . . . . . 4 . . . . . . . 1 . . 2 . . . . . . 5 . 9 . . . . . . STAY 17 | . . . . . . 4 . . . . . . . 1 . . 2 . . . . . . 3 . 7 . . . . . . FOLLOW 4 | . . . . . . . . . . . . . . . . . . . . . . . . 2 . 2 . . . . . . Ally Attacks 336 | . . 3 . . . 7 . . . 13 . . . 10 . . 66 184 . . . . 6 26 . . . . . . . 21 Total Damage 9303 | . . 43 . . . 126 . . . 96 . . . 187 . . 1205 6000 . . . . 223 785 . 229 79 . . . . 330 Kills 40 | . . . . . . . . . . 3 . . . 2 . . 11 19 . . . . . 4 . 1 . . . . . . Allies Corrupted 1 | . . . . . . . . . . . . . . . . . 1 . . . . . . . . . . . . . . . Allies Melted 1 | . . . . . . 1 . . . . . . . . . . . . . . . . . . . . . . . . . . Intel | -11 -10 -10 -9 -9 -8 -8 -8 -6 -6 -6 -6 -6 -5 -5 -5 -5 -5 -5 -5 -5 -4 -4 -4 -4 -3 -3 -3 -2 -2 -2 -1 -1 ------- Run | Yrd Mat Min Mat Min Mat Sto Rec Fac Low Low Zio Dee Pro Fac Was Fac Ext Cet Arc Hub Fac Upp Upp War Pro Res Tes Res Qua Sec Acc Com Active Infowar (turns) 9308 | 23 1009 514 1018 998 865 1036 898 1838 518 440 . . . . . . . . . . . . . 2 . 1 3 . . 2 143 . Sensors 21 | . . . . . . . . . . . . . . . . . . . . . . . . . . . . . . . 21 . Terrain 3943 | 17 1009 514 1018 998 311 . . . . . . . . . . . . . . . . . . . . 1 . . . . 75 . Seismic 9178 | 23 1009 514 1018 998 865 1036 898 1838 518 440 . . . . . . . . . . . . . . . . . . . . 21 . Cloaking 17 | . . . . . . . . . . . . . . . . . . . . . . . . 2 . . . . . . 15 . Jamming 4156 | . . . . . 261 1036 898 1835 114 . . . . . . . . . . . . . . . . . 1 . . 2 9 . ECM 4 | . . . . . . . . . . . . . . . . . . . . . . . . . . . 2 . . . 2 . Robot Analysis Total 101 | . . . 1 . . . . . . . . . . . . . . . . . . . . . . 100 . . . . . . Derelict Logs Recovered 12 | . . 1 . 2 . . . . 2 3 . . 2 . . . . . . . . 1 1 . . . . . . . . . Drone Launches . | . . . . . . . . . . . . . . . . . . . . . . . . . . . . . . . . . Drone Recoveries . | . . . . . . . . . . . . . . . . . . . . . . . . . . . . . . . . . Exploration | -11 -10 -10 -9 -9 -8 -8 -8 -6 -6 -6 -6 -6 -5 -5 -5 -5 -5 -5 -5 -5 -4 -4 -4 -4 -3 -3 -3 -2 -2 -2 -1 -1 ------------- Run | Yrd Mat Min Mat Min Mat Sto Rec Fac Low Low Zio Dee Pro Fac Was Fac Ext Cet Arc Hub Fac Upp Upp War Pro Res Tes Res Qua Sec Acc Com Turns Passed 37528 | 116 1009 514 1018 998 865 1036 898 1838 518 516 580 904 664 1882 112 1334 1919 681 3673 1118 2070 457 377 2239 293 1953 845 955 848 1593 1856 1849 Spaces Moved 49234 | 65 1142 589 1158 610 1069 1363 1622 2933 1104 1123 1079 1103 1189 2786 215 1219 1936 980 291 2027 3161 1150 950 3114 795 1187 2023 1467 1392 2466 3393 2533 Core 160 | 54 33 . . . . . . . . . . . . . . . . . . . . . . . . . . . . 46 27 . Treads 1274 | . . . . . . . . 1274 . . . . . . . . . . . . . . . . . . . . . . . . Legs . | . . . . . . . . . . . . . . . . . . . . . . . . . . . . . . . . . Wheels 285 | 11 274 . . . . . . . . . . . . . . . . . . . . . . . . . . . . . . . Hover 11003 | . . . . . . . . 1398 1104 1123 1079 1103 1189 2786 215 1006 . . . . . . . . . . . . . . . . Flight 36512 | . 835 589 1158 610 1069 1363 1622 261 . . . . . . . 213 1936 980 291 2027 3161 1150 950 3114 795 1187 2023 1467 1392 2420 3366 2533 Fastest Speed 23 | 50 34 34 31 31 28 23 26 28 33 33 33 33 33 33 33 28 28 28 28 28 28 28 28 28 28 28 28 28 28 28 28 28 Average Speed 30 | 55 47 34 32 31 29 26 26 37 33 33 33 33 33 33 33 35 28 28 28 28 28 28 28 28 28 28 28 28 28 32 29 28 Slowest Speed 150 | 80 120 34 34 31 31 28 32 45 33 33 33 33 33 33 33 55 28 28 28 28 28 28 28 28 28 28 28 28 42 150 150 28 Overloaded Moves 7 | . . . . . . 7 . . . . . . . . . . . . . . . . . . . . . . . . . . Propulsion Burnouts . | . . . . . . . . . . . . . . . . . . . . . . . . . . . . . . . . . Robots Hopped 381 | . 14 5 33 17 34 48 29 4 . . . . . . . 3 25 7 . 28 14 2 . 7 . 7 19 12 12 25 19 17 Potential Cave-ins 4 | . . . . . . . . . . . . . . . . . . . . . . . . . . . . . 4 . . . Cave-ins Triggered . | . . . . . . . . . . . . . . . . . . . . . . . . . . . . . . . . . Teleports 1 | . . . . . . . . . . . . . . . . . . . . . . . . . . . . . . 1 . . Exploration Rate (%) 77 | 4 98 98 94 98 66 93 98 73 97 94 83 89 98 50 88 28 90 82 89 59 58 98 82 95 91 23 98 41 96 91 61 67 Regions Visited 32 Branch Regions 21 Pre-discovered Areas 14 | . 2 1 1 1 1 2 4 . 1 . . . . . . . . . . . . 1 . . . . . . . . . . Known Exits Taken 29 | . 1 1 1 1 1 1 1 1 1 1 1 1 1 . . 1 1 1 1 1 1 1 1 1 1 1 1 1 1 1 1 . Unknown Exits Taken 1 | 1 . . . . . . . . . . . . . . . . . . . . . . . . . . . . . . . . Scrap Searched 33 | . . 2 . 4 . . . . 4 11 3 . 1 . . . . . . . . 2 5 . 1 . . . . . . . Spaces Dug 80 | . . . . . . . . . 2 2 4 4 . 9 . 9 2 . . 6 9 . . 5 . . . 5 2 10 11 . Terrain Destroyed 1139 | . . . . . . . . 19 8 43 28 63 8 214 4 129 28 18 9 40 167 . 2 69 2 1 4 19 13 109 47 95 Melee . | . . . . . . . . . . . . . . . . . . . . . . . . . . . . . . . . . Projectile 593 | . . . . . . . . 12 8 27 19 40 8 98 4 88 28 18 9 40 42 . 2 37 2 1 2 19 5 38 28 18 AOE 500 | . . . . . . . . 7 . 16 9 23 . 116 . 41 . . . . 123 . . . . . . . . 71 19 75 Terrain Rammed . | . . . . . . . . . . . . . . . . . . . . . . . . . . . . . . . . . Walls Destroyed . | . . . . . . . . . . . . . . . . . . . . . . . . . . . . . . . . . Machines Disabled . | . . . . . . . . . . . . . . . . . . . . . . . . . . . . . . . . . Actions | -11 -10 -10 -9 -9 -8 -8 -8 -6 -6 -6 -6 -6 -5 -5 -5 -5 -5 -5 -5 -5 -4 -4 -4 -4 -3 -3 -3 -2 -2 -2 -1 -1 --------- Run | Yrd Mat Min Mat Min Mat Sto Rec Fac Low Low Zio Dee Pro Fac Was Fac Ext Cet Arc Hub Fac Upp Upp War Pro Res Tes Res Qua Sec Acc Com Total 69283 | 117 1498 874 1620 1355 1389 1714 2007 3538 1241 1246 1241 1613 1450 3688 247 2031 3164 1318 3873 2514 4176 1271 1043 4260 869 2801 2264 1997 1836 3185 4225 3618 Wait 13569 | 34 295 281 396 731 216 190 341 288 81 48 42 394 191 636 8 500 709 105 3508 303 410 62 30 359 11 1514 94 333 342 206 284 627 Move 48472 | 64 1113 578 1092 575 1003 1270 1563 2924 1103 1122 1078 1102 1188 2786 214 1212 1890 969 290 1976 3133 1145 949 3100 794 1172 1984 1443 1368 2419 3354 2499 Hop 349 | . 14 5 32 17 31 44 29 4 . . . . . . . 3 20 3 . 22 13 2 . 6 . 7 19 11 11 21 19 16 Pick Up 176 | . 3 . 1 . 4 8 4 12 3 5 1 7 . 14 2 10 7 8 3 8 12 . 2 18 5 5 2 1 8 7 9 7 Fast Attach 106 | 7 3 . 3 2 3 1 5 20 . . 1 3 . 6 . 5 1 4 3 . 5 . . 5 . . 1 1 6 16 2 3 Attach 13 | . . . 1 . 1 . 1 1 . . 1 . . . . 2 . . . . 1 1 . . 1 . . . . 2 . 1 Detach 14 | . . . . 1 1 . 2 8 . . . . . . . . 1 . . . . . . . . . . . . 1 . . Swap 160 | . 6 . 1 1 2 11 . 1 1 1 1 5 . 13 . 2 . 2 . 8 6 . . 10 . 3 24 3 . 17 40 2 Drop 240 | . 5 . 2 1 6 10 18 28 1 2 1 10 . 22 2 14 7 11 4 9 11 1 . 23 5 4 3 1 8 13 7 11 Fire 4044 | 12 45 10 57 18 77 113 29 164 22 31 84 51 23 157 21 196 315 154 23 88 386 27 42 511 37 60 100 144 59 313 355 320 Melee . | . . . . . . . . . . . . . . . . . . . . . . . . . . . . . . . . . Ram 1 | . . . . . . . . 1 . . . . . . . . . . . . . . . . . . . . . . . . Kick . | . . . . . . . . . . . . . . . . . . . . . . . . . . . . . . . . . Crush 15 | . . . . . . . . 15 . . . . . . . . . . . . . . . . . . . . . . . . Escape Stasis 50 | . . . . . . 15 . . . . . . . . . . . . . . 4 . . . . 9 . . . 12 10 . Rewire 208 | . . . . . . . . . 15 15 . . 30 . . . 70 2 . . . 27 5 44 . . . . . . . . Trap . | . . . . . . . . . . . . . . . . . . . . . . . . . . . . . . . . . Miscellaneous 1866 | . 14 . 35 9 45 52 15 72 15 22 32 41 18 54 . 87 144 60 42 100 195 6 15 184 16 27 37 60 34 158 145 132 Route ------- -11/Scrapyard -10/Materials (discovered 5 exits: *Mat x3 / *Min x2) -10/Mines (discovered 2 exits: *Mat x2) -9/Materials (discovered 4 exits: *Mat x3 / *Min) -9/Mines (discovered 2 exits: *Mat x2) -8/Materials (discovered 4 exits: *Fac x3 / *Sto) -8/Storage (discovered 2 exits: *Fac / *Rec) -8/Recycling -6/Factory (discovered 5 exits: *Fac x4 / *Low) -6/Lower Caves -6/Lower Caves (discovered 2 exits: *Fac / *Zio) -6/Zion (discovered 2 exits: *Dee / [*Pro]) -6/Deep Caves -5/Proximity Caves -5/Factory (discovered 4 exits: Fac / *Upp x2 / *Ext) -5/Waste -5/Factory (discovered 4 exits: *Upp x2 / *Ext x2) -5/Extension (discovered 2 exits: *Fac / *Cet) -5/Cetus -5/Archives (discovered 2 exits: *Fac / *Hub) -5/Hub_04(d) (discovered 2 exits: *Fac x2) -4/Factory (discovered 4 exits: *Res x2 / *Upp x2) -4/Upper Caves -4/Upper Caves (discovered 2 exits: *Res / *War) -4/Warlord -3/Proximity Caves -3/Research (discovered 4 exits: *Res x3 / *Tes) -3/Testing -2/Research -2/Quarantine (discovered 3 exits: *Acc / *Sec / *Frg) -2/Section 7 -1/Access -1/Command (discovered 2 exits: *Sur x2) To Fleet Rendezvous History --------- Turn | Location | Event 9 | -11/Scrapyard | Upgraded with Propulsion slot (x1) 9 | -11/Scrapyard | Upgraded with Utility slot (x1) 9 | -11/Scrapyard | Upgraded with Weapon slot (x1) 18 | -11/Scrapyard | Discovered new exit (range 15) 117 | -11/Scrapyard | Entered Materials 125 | -10/Materials | Discovered new exit (range 8) 305 | -10/Materials | Destroyed 7 combat bots 308 | -10/Materials | Build established: Mutant 385 | -10/Materials | Discovered new exit (range 12) 463 | -10/Materials | Reached level 2 506 | -10/Materials | Discovered new exit (range 10) 678 | -10/Materials | Reached level 3 686 | -10/Materials | Upgraded with Weapon slot (x1) 817 | -10/Materials | Derelicts attacked the area 870 | -10/Materials | Discovered new exit (range 16) 892 | -10/Materials | Reached level 4 943 | -10/Materials | Discovered new exit (range 7) 958 | -10/Materials | Upgraded with Propulsion slot (x1) 958 | -10/Materials | Upgraded with Utility slot (x1) 981 | -10/Materials | Identified exit to Materials 986 | -10/Materials | Build established: Gunner 1126 | -10/Materials | Identified exit to Mines 1126 | -10/Materials | Entered Mines 1139 | -10/Mines | Discovered exit to Materials (range 13) 1159 | -10/Mines | Learned location of 1 exit from Materials 1161 | -10/Mines | Learned location of Storage (-8) 1232 | -10/Mines | Assembled infested the area 1237 | -10/Mines | Assisted by a Guerilla fighting off Assembled 1634 | -10/Mines | Discovered exit to Materials (range 5) 1640 | -10/Mines | Entered Materials 1641 | -9/Materials | Identified exit to Materials 1642 | -9/Materials | Reached level 5 1645 | -9/Materials | Upgraded with Weapon slot (x1) 1740 | -9/Materials | Reached level 6 1820 | -9/Materials | Destroyed 7 combat bots 1931 | -9/Materials | Reached level 7 2109 | -9/Materials | Reached level 8 2117 | -9/Materials | Discovered new exit (range 15) 2237 | -9/Materials | Identified exit to Mines 2270 | -9/Materials | Reached level 9 2299 | -9/Materials | Upgraded with Propulsion slot (x1) 2299 | -9/Materials | Upgraded with Utility slot (x3) 2535 | -9/Materials | Discovered exit to Materials (range 16) 2564 | -9/Materials | Reached level 10 2577 | -9/Materials | Sterilization system engaged 2577 | -9/Materials | Non-combat units ordered to evacuate 2595 | -9/Materials | Destroyed 8 combat bots 2634 | -9/Materials | Discovered exit to Materials (range 6) 2658 | -9/Materials | Entered Mines 2673 | -9/Mines | Excavation squad dispatched 2673 | -9/Mines | A large section of the Mines collapsed 2711 | -9/Mines | Build established: Sprinter 2923 | -9/Mines | Excavation squad dispatched 3173 | -9/Mines | Excavation squad dispatched 3426 | -9/Mines | Destroyed 11 combat bots 3429 | -9/Mines | Deemed a non-threat by the Exiles lab entrance 3493 | -9/Mines | Met a Derelict shopkeep closing up shop 3502 | -9/Mines | Upgraded with Power slot (x1) 3568 | -9/Mines | Discovered exit to Materials (range 11) 3574 | -9/Mines | Learned 8 Materials zone layouts 3596 | -9/Mines | Found a hidden stash of uninstalled traps 3604 | -9/Mines | Discovered exit to Materials (range 6) 3656 | -9/Mines | Entered Materials 3657 | -8/Materials | Identified exit to Factory 3658 | -8/Materials | Reached level 11 3732 | -8/Materials | Reached level 12 3774 | -8/Materials | Identified exit to Storage 3786 | -8/Materials | Garrison activated, responded to threat 3997 | -8/Materials | Reached level 13 4056 | -8/Materials | First assault squad dispatched 4191 | -8/Materials | Destroyed 10 combat bots 4424 | -8/Materials | Sterilization system engaged 4424 | -8/Materials | Non-combat units ordered to evacuate 4483 | -8/Materials | Discovered exit to Factory (range 15) 4521 | -8/Materials | Entered Storage 4523 | -8/Storage | Reached level 14 4595 | -8/Storage | Discovered exit to Factory (range 15) 4712 | -8/Storage | Met a pair of Derelict thieves 4721 | -8/Storage | Used back door to open Recycling access 4721 | -8/Storage | Discovered new exit (range 5) 4733 | -8/Storage | Identified exit to Recycling 4875 | -8/Storage | Destroyed 10 combat bots 5070 | -8/Storage | Destroyed 11 combat bots 5122 | -8/Storage | Reached level 15 5215 | -8/Storage | Upgraded with Utility slot (x1) 5321 | -8/Storage | First assault squad dispatched 5348 | -8/Storage | High security lockdown imminent 5428 | -8/Storage | High security lockdown engaged 5445 | -8/Storage | Destroyed 20 combat bots 5515 | -8/Storage | Sterilization system engaged 5515 | -8/Storage | Non-combat units ordered to evacuate 5551 | -8/Storage | Destroyed 14 combat bots 5557 | -8/Storage | Entered Recycling 5557 | -8/Recycling | Accompanied by 2 allies 5592 | -8/Recycling | Discovered new exit (range 16) 5655 | -8/Recycling | Scanned before Scraplab entrance 5659 | -8/Recycling | Entered Scraplab 5660 | -8/Recycling | Angered Scraplab inhabitants 5660 | -8/Recycling | Found Prototype Device 5660 | -8/Recycling | Identified Scrap Engine 6455 | -8/Recycling | Identified exit to Factory 6455 | -8/Recycling | Entered Factory 6457 | -6/Factory | Reached level 16 6498 | -6/Factory | Reached level 17 6548 | -6/Factory | Discovered new exit (range 9) 6560 | -6/Factory | Identified exit to Factory 6763 | -6/Factory | Upgraded with Utility slot (x1) 6876 | -6/Factory | Build established: Mutant 7015 | -6/Factory | Reached level 18 7096 | -6/Factory | Discovered exit to Factory (range 16) 7155 | -6/Factory | First assault squad dispatched 7299 | -6/Factory | Destroyed 9 combat bots 7332 | -6/Factory | Discovered new exit (range 8) 7348 | -6/Factory | Identified exit to Lower Caves 7350 | -6/Factory | Discovered exit to Factory (range 16) 7458 | -6/Factory | Discovered exit to Factory (range 10) 7671 | -6/Factory | Reached level 19 7722 | -6/Factory | Build established: Construct 7741 | -6/Factory | Cargo convoy interrupted 7798 | -6/Factory | Lost 3 allies 7864 | -6/Factory | Found Prototype Launcher 7864 | -6/Factory | Identified Adv. Micro-nuke Launcher 8293 | -6/Factory | Entered Lower Caves 8294 | -6/Lower Caves | Core integrity fell below 50% 8384 | -6/Lower Caves | Spotted B-75 Beast 8402 | -6/Lower Caves | Destroyed B-75 Beast 8432 | -6/Lower Caves | Learned Factory emergency access door positions 8435 | -6/Lower Caves | Learned location of Extension (-5) 8531 | -6/Lower Caves | Attacked by a delusional Derelict stockpiling Unaware 8610 | -6/Lower Caves | Discovered new exit (range 9) 8613 | -6/Lower Caves | Identified exit to Lower Caves 8624 | -6/Lower Caves | Encountered a Warlord checkpoint 8811 | -6/Lower Caves | Entered another Lower Caves area 8811 | -6/Lower Caves | Accompanied by 3 allies 8897 | -6/Lower Caves | Reached level 20 8972 | -6/Lower Caves | Learned 12 Factory zone layouts 9018 | -6/Lower Caves | Discovered exit to Factory (range 13) 9082 | -6/Lower Caves | Encountered a Warlord checkpoint 9135 | -6/Lower Caves | Learned Factory stockpile data 9218 | -6/Lower Caves | Lost 3 allies 9220 | -6/Lower Caves | Destroyed 10 combat bots 9272 | -6/Lower Caves | Discovered new exit (range 11) 9274 | -6/Lower Caves | Identified exit to Zion 9327 | -6/Lower Caves | Entered Zion 9349 | -6/Zion | Discovered new exit (range 16) 9359 | -6/Zion | Gained Derelict followers 9395 | -6/Zion | Found Prototype Launcher 9395 | -6/Zion | Identified Rocket Array 9408 | -6/Zion | System corruption cleaned by Quarantine Array 9410 | -6/Zion | Attacked by Zionites 9410 | -6/Zion | Spotted BN-C8N(B) 9410 | -6/Zion | Spotted BO-WKF(B) 9435 | -6/Zion | Destroyed BN-C8N(B) 9450 | -6/Zion | Destroyed BO-WKF(B) 9907 | -6/Zion | Discovered new exit (range 3) 9907 | -6/Zion | Saw the warning signs outside the Deep Caves entrance 9907 | -6/Zion | Identified exit to Deep Caves 9907 | -6/Zion | Entered Deep Caves 10009 | -6/Deep Caves | Attacked by Z-Imprinter 10018 | -6/Deep Caves | Destroyed Z-Imprinter 10184 | -6/Deep Caves | Destroyed 11 combat bots 10210 | -6/Deep Caves | Spotted Golem 10715 | -6/Deep Caves | Spotted Golem 10736 | -6/Deep Caves | Discovered new exit (range 6) 10738 | -6/Deep Caves | Identified exit to Proximity Caves 10811 | -6/Deep Caves | Entered Proximity Caves 10813 | -5/Proximity Caves | Reached level 21 10946 | -5/Proximity Caves | Learned location of 1 exit from Factory 11032 | -5/Proximity Caves | Discovered exit to Factory (range 8) 11040 | -5/Proximity Caves | Spotted B-75 Beast 11046 | -5/Proximity Caves | Destroyed B-75 Beast 11161 | -5/Proximity Caves | Attracted the attention of an 0b10 outpost 11205 | -5/Proximity Caves | Destroyed 9 combat bots 11241 | -5/Proximity Caves | Learned Factory interactive machine intel 11475 | -5/Proximity Caves | Entered Factory 11475 | -5/Factory | Accompanied by 2 allies 11476 | -5/Factory | Identified exit to Factory 11477 | -5/Factory | Identified exit to Upper Caves 11477 | -5/Factory | Reached level 22 11480 | -5/Factory | Loaded intel: 55 interactive machine locations 11846 | -5/Factory | Discovered exit to Upper Caves (range 12) 12013 | -5/Factory | Destroyed 13 combat bots 12049 | -5/Factory | Discovered new exit (range 13) 12057 | -5/Factory | Cargo convoy interrupted 12072 | -5/Factory | Reached level 23 12075 | -5/Factory | Garrison activated, responded to threat 12120 | -5/Factory | Destroyed 16 combat bots 12155 | -5/Factory | Upgraded with Utility slot (x1) 12158 | -5/Factory | Found Prototype Device 12158 | -5/Factory | Identified Exp. Actuator Array 12464 | -5/Factory | Found Hvy. Reactive Plating 12975 | -5/Factory | First assault squad dispatched 13214 | -5/Factory | Reached level 24 13348 | -5/Factory | High security lockdown imminent 13357 | -5/Factory | Sucked down chute 13357 | -5/Factory | Entered Waste 13363 | -5/Waste | Spotted C-40 Crusher 13372 | -5/Waste | EMP discharged 13372 | -5/Waste | System corruption reached 10% 13377 | -5/Waste | Spotted C-40 Crusher 13377 | -5/Waste | Spotted C-40 Crusher 13379 | -5/Waste | Spotted C-40 Crusher 13396 | -5/Waste | Destroyed C-40 Crusher 13399 | -5/Waste | Destroyed C-40 Crusher 13411 | -5/Waste | Destroyed C-40 Crusher 13413 | -5/Waste | Destroyed C-40 Crusher 13414 | -5/Waste | Spotted C-40 Crusher 13423 | -5/Waste | Destroyed C-40 Crusher 13434 | -5/Waste | Spotted C-40 Crusher 13466 | -5/Waste | Discovered new exit (range 10) 13468 | -5/Waste | Identified exit to Factory 13469 | -5/Waste | Entered Factory 13523 | -5/Factory | Spotted B-75 Beast 13538 | -5/Factory | Destroyed B-75 Beast 14093 | -5/Factory | Cargo convoy interrupted 14139 | -5/Factory | Core integrity fell below 50% 14148 | -5/Factory | Destroyed 11 combat bots 14171 | -5/Factory | Found Prototype Launcher 14171 | -5/Factory | Identified Com. Tesla Bomb Launcher 14211 | -5/Factory | Discovered exit to Upper Caves (range 5) 14222 | -5/Factory | Unchained authorized (1B-0RG) 14338 | -5/Factory | Garrison activated, responded to threat 14343 | -5/Factory | Core integrity fell below 20% 14369 | -5/Factory | First assault squad dispatched 14567 | -5/Factory | Destroyed 7 combat bots 14645 | -5/Factory | Identified exit to Extension 14662 | -5/Factory | High security lockdown imminent 14742 | -5/Factory | High security lockdown engaged 14743 | -5/Factory | Spotted 1B-0RG 14800 | -5/Factory | Destroyed 1B-0RG 14800 | -5/Factory | Reached level 25 14803 | -5/Factory | Entered Extension 14821 | -5/Extension | Disrupted transfer network 15103 | -5/Extension | First assault squad dispatched 15229 | -5/Extension | High security lockdown imminent 15255 | -5/Extension | Build established: Commander-Construct 15263 | -5/Extension | Destroyed 13 combat bots 15309 | -5/Extension | High security lockdown engaged 15568 | -5/Extension | Destroyed 32 combat bots 15642 | -5/Extension | Destroyed 12 combat bots 15740 | -5/Extension | Reached level 26 15841 | -5/Extension | Spotted B-75 Beast 15843 | -5/Extension | Spotted B-75 Beast 15869 | -5/Extension | Rescued a captive Derelict 15869 | -5/Extension | Rescued a captive Derelict 15891 | -5/Extension | Destroyed B-75 Beast 15892 | -5/Extension | Destroyed B-75 Beast 15964 | -5/Extension | Rescued a captive Derelict 15967 | -5/Extension | Rescued a captive Derelict 15977 | -5/Extension | Rescued a captive Derelict 15978 | -5/Extension | Rescued a captive Derelict 16009 | -5/Extension | Build established: Construct 16031 | -5/Extension | Rescued A7 16060 | -5/Extension | P-70 Sage assimilated allied X0-VZN(l) 16110 | -5/Extension | Sterilization system engaged 16110 | -5/Extension | Non-combat units ordered to evacuate 16165 | -5/Extension | Discovered exit to Factory (range 10) 16165 | -5/Extension | Discovered new exit (range 6) 16201 | -5/Extension | Destroyed 48 combat bots 16210 | -5/Extension | Combat units ordered to evacuate 16410 | -5/Extension | Ambient heat levels rising (+10) 16423 | -5/Extension | Destroyed 11 combat bots 16473 | -5/Extension | Identified exit to Cetus 16560 | -5/Extension | Ambient heat levels rising (+10) 16710 | -5/Extension | Ambient heat levels rising (+10) 16722 | -5/Extension | Entered Cetus 16722 | -5/Cetus | Accompanied by 3 allies (A7) 16727 | -5/Cetus | Acquired a Cetus Manufacturing Module code from A7 16730 | -5/Cetus | Spotted Cetus Guard 16731 | -5/Cetus | Spotted Cetus Guard 16732 | -5/Cetus | Spotted Cetus Guard 16736 | -5/Cetus | Spotted Cetus Guard 16738 | -5/Cetus | Allies destroyed Cetus Guard 16742 | -5/Cetus | Destroyed Cetus Guard 16745 | -5/Cetus | Destroyed Cetus Guard 16749 | -5/Cetus | Allies destroyed Cetus Guard 16770 | -5/Cetus | Started Cetus Manufacturing Module 16773 | -5/Cetus | Discovered new exit (range 15) 16779 | -5/Cetus | Spotted Cetus Guard 16779 | -5/Cetus | Spotted Cetus Guard 16780 | -5/Cetus | High security lockdown imminent 16795 | -5/Cetus | Manufactured an Enhanced Grunt 16820 | -5/Cetus | Manufactured an Enhanced Grunt 16827 | -5/Cetus | Spotted Cetus Guard 16829 | -5/Cetus | Destroyed Cetus Guard 16831 | -5/Cetus | Destroyed Cetus Guard 16837 | -5/Cetus | Spotted Cetus Guard 16839 | -5/Cetus | Destroyed Cetus Guard 16840 | -5/Cetus | Destroyed Cetus Guard 16845 | -5/Cetus | Manufactured an Enhanced Grunt 16860 | -5/Cetus | High security lockdown engaged 16870 | -5/Cetus | Manufactured an Enhanced Grunt 16895 | -5/Cetus | Manufactured an Enhanced Grunt 16925 | -5/Cetus | Cetus Manufacturing Module disabled 16960 | -5/Cetus | Destroyed 17 combat bots 17043 | -5/Cetus | Destroyed 12 combat bots 17052 | -5/Cetus | Reached level 27 17176 | -5/Cetus | Build established: Commander-Construct 17191 | -5/Cetus | Destroyed 11 combat bots 17248 | -5/Cetus | Destroyed 8 combat bots 17256 | -5/Cetus | Lost 6 allies 17291 | -5/Cetus | Found Prototype Device 17295 | -5/Cetus | Identified Exp. Thermal Shield 17316 | -5/Cetus | Identified exit to Archives 17403 | -5/Cetus | Entered Archives 17526 | -5/Archives | Build established: Construct 19470 | -5/Archives | Discovered new exit (range 16) 19656 | -5/Archives | Unable to access archive contents 19660 | -5/Archives | Unable to access archive contents 21046 | -5/Archives | Unable to access archive contents 21053 | -5/Archives | Identified exit to Hub_04(d) 21059 | -5/Archives | Discovered exit to Factory (range 16) 21076 | -5/Archives | Entered Hub_04(d) 21132 | -5/Hub_04(d) | Watched by a mysterious "MATRIX" hacker 21212 | -5/Hub_04(d) | Unchained authorized (V4-D3R) 21243 | -5/Hub_04(d) | Garrison activated, responded to threat 21269 | -5/Hub_04(d) | Discovered exit to Factory (range 16) 21300 | -5/Hub_04(d) | Network Hub disabled 21310 | -5/Hub_04(d) | Network Hub disabled 21357 | -5/Hub_04(d) | Spotted Lightning 21357 | -5/Hub_04(d) | Spotted Lightning 21357 | -5/Hub_04(d) | Spotted Lightning 21376 | -5/Hub_04(d) | First assault squad dispatched 21398 | -5/Hub_04(d) | Destroyed Lightning 21403 | -5/Hub_04(d) | Destroyed Lightning 21406 | -5/Hub_04(d) | Destroyed Lightning 21431 | -5/Hub_04(d) | Spotted Lightning 21454 | -5/Hub_04(d) | Found Prototype Energy Cannon 21475 | -5/Hub_04(d) | Found Prototype Device 21475 | -5/Hub_04(d) | Identified Exp. Phase Shifter 21480 | -5/Hub_04(d) | Found Prototype Processor 21480 | -5/Hub_04(d) | Identified Exp. Targeting Computer 21506 | -5/Hub_04(d) | Network Hub disabled 21782 | -5/Hub_04(d) | Discovered exit to Factory (range 16) 22050 | -5/Hub_04(d) | Destroyed 7 combat bots 22074 | -5/Hub_04(d) | High security lockdown imminent 22115 | -5/Hub_04(d) | Spotted V4-D3R 22154 | -5/Hub_04(d) | High security lockdown engaged 22194 | -5/Hub_04(d) | Entered Factory 22195 | -4/Factory | Core integrity fell below 50% 22260 | -4/Factory | Destroyed 10 combat bots 22337 | -4/Factory | Upgraded with Weapon slot (x1) 22361 | -4/Factory | Unchained authorized (V4-D3R) 22444 | -4/Factory | First assault squad dispatched 22466 | -4/Factory | Spotted B-86 Titan 22466 | -4/Factory | Destroyed B-86 Titan 22563 | -4/Factory | Spotted B-86 Titan 22595 | -4/Factory | Spotted V4-D3R 22636 | -4/Factory | Destroyed V4-D3R 22636 | -4/Factory | Reached level 28 22639 | -4/Factory | Found Prototype Special Weapon 22639 | -4/Factory | Identified V4-D3R's Forcegen 22642 | -4/Factory | Found Prototype Storage 22642 | -4/Factory | Identified V4-D3R's Forcewell 22671 | -4/Factory | Discovered new exit (range 5) 22675 | -4/Factory | Identified exit to Upper Caves 22804 | -4/Factory | Discovered new exit (range 9) 22806 | -4/Factory | Identified exit to Research 22941 | -4/Factory | Build established: Scavenger-Construct 23026 | -4/Factory | Discovered exit to Research (range 15) 23057 | -4/Factory | Cargo convoy interrupted 23077 | -4/Factory | High security lockdown imminent 23157 | -4/Factory | High security lockdown engaged 23182 | -4/Factory | Destroyed 13 combat bots 23280 | -4/Factory | Garrison activated, responded to threat 23316 | -4/Factory | Destroyed 12 combat bots 23375 | -4/Factory | Destroyed 9 combat bots 23424 | -4/Factory | Destroyed 7 combat bots 23520 | -4/Factory | Destroyed 8 combat bots 23536 | -4/Factory | Discovered exit to Upper Caves (range 13) 23960 | -4/Factory | Reached level 29 24000 | -4/Factory | Sterilization system engaged 24000 | -4/Factory | Non-combat units ordered to evacuate 24028 | -4/Factory | Destroyed 39 combat bots 24088 | -4/Factory | Destroyed 9 combat bots 24100 | -4/Factory | Combat units ordered to evacuate 24227 | -4/Factory | Destroyed 10 combat bots 24264 | -4/Factory | Entered Upper Caves 24269 | -4/Upper Caves | Upgraded with Utility slot (x1) 24347 | -4/Upper Caves | Discovered new exit (range 7) 24348 | -4/Upper Caves | Identified exit to Upper Caves 24353 | -4/Upper Caves | Attracted the attention of an 0b10 outpost 24415 | -4/Upper Caves | Destroyed 7 combat bots 24583 | -4/Upper Caves | Attracted the attention of an 0b10 checkpoint 24721 | -4/Upper Caves | Entered another Upper Caves area 24721 | -4/Upper Caves | Accompanied by 2 allies 24732 | -4/Upper Caves | Attracted the attention of an 0b10 outpost 24788 | -4/Upper Caves | Discovered exit to Research (range 7) 24794 | -4/Upper Caves | Destroyed 12 combat bots 24815 | -4/Upper Caves | Learned Research security intel 24820 | -4/Upper Caves | Attracted the attention of an 0b10 checkpoint 24865 | -4/Upper Caves | Spotted B-86 Titan 24866 | -4/Upper Caves | Destroyed B-86 Titan 25039 | -4/Upper Caves | Discovered new exit (range 5) 25039 | -4/Upper Caves | Identified exit to Warlord 25049 | -4/Upper Caves | Encountered a Warlord checkpoint 25098 | -4/Upper Caves | Entered Warlord 25098 | -4/Warlord | Accompanied by 2 allies 25113 | -4/Warlord | Discovered new exit (range 14) 25133 | -4/Warlord | Opened side exit 25137 | -4/Warlord | Attacked by Warlord forces 25257 | -4/Warlord | Found Prototype Device 25257 | -4/Warlord | Identified Exp. Cloaking Device 25258 | -4/Warlord | Destroyed 8 combat bots 25262 | -4/Warlord | Found Prototype Device 25262 | -4/Warlord | Identified Thermal Barrier 25278 | -4/Warlord | Spotted 27-LSZ(B) 25279 | -4/Warlord | Spotted 59-SLQ(B) 25287 | -4/Warlord | Spotted 2L-INJ(K) 25287 | -4/Warlord | Spotted 8F-E54(K) 25304 | -4/Warlord | Warlord's base attacked by MAIN.C 25314 | -4/Warlord | Destroyed 2L-INJ(K) 25355 | -4/Warlord | Spotted 8P-ZFI(L) 25362 | -4/Warlord | Destroyed 8P-ZFI(L) 25373 | -4/Warlord | Destroyed 8F-E54(K) 25423 | -4/Warlord | Destroyed Warlord 25442 | -4/Warlord | Destroyed Fake God Mode 25569 | -4/Warlord | Destroyed 10 combat bots 25580 | -4/Warlord | Build established: Construct 25654 | -4/Warlord | Warlord forces counterattacked 25655 | -4/Warlord | Destroyed EX-DEC 25660 | -4/Warlord | Destroyed 13 combat bots 25708 | -4/Warlord | Spotted B-86 Titan 25721 | -4/Warlord | Destroyed B-86 Titan 25756 | -4/Warlord | Spotted Striker 25757 | -4/Warlord | Destroyed Striker 25758 | -4/Warlord | Spotted B-90 Cyclops 25759 | -4/Warlord | Spotted B-86 Titan 25780 | -4/Warlord | Destroyed B-90 Cyclops 25794 | -4/Warlord | Destroyed B-86 Titan 25811 | -4/Warlord | Spotted Executioner 25811 | -4/Warlord | Spotted B-90 Cyclops 25812 | -4/Warlord | Destroyed Executioner 25817 | -4/Warlord | Destroyed B-90 Cyclops 25825 | -4/Warlord | Spotted Executioner 25826 | -4/Warlord | Destroyed Executioner 25902 | -4/Warlord | Spotted Striker 25903 | -4/Warlord | Destroyed Striker 25931 | -4/Warlord | Destroyed 43 combat bots 25935 | -4/Warlord | Spotted Striker 25936 | -4/Warlord | Destroyed Striker 25952 | -4/Warlord | Spotted Executioner 25955 | -4/Warlord | Destroyed Executioner 25959 | -4/Warlord | Spotted Executioner 25962 | -4/Warlord | Destroyed Executioner 25979 | -4/Warlord | Warlord base infiltrated, sounded retreat 25993 | -4/Warlord | Destroyed 15 combat bots 25997 | -4/Warlord | Spotted Striker 26000 | -4/Warlord | Destroyed Striker 26024 | -4/Warlord | Spotted Executioner 26031 | -4/Warlord | Destroyed Executioner 26055 | -4/Warlord | System corruption reached 10% 26057 | -4/Warlord | Destroyed 11 combat bots 26088 | -4/Warlord | Spotted Executioner 26092 | -4/Warlord | Destroyed Executioner 26093 | -4/Warlord | Spotted B-90 Cyclops 26097 | -4/Warlord | Destroyed B-90 Cyclops 26110 | -4/Warlord | Reached level 30 26144 | -4/Warlord | Spotted Executioner 26145 | -4/Warlord | Destroyed Executioner 26156 | -4/Warlord | Spotted B-86 Titan 26159 | -4/Warlord | Destroyed B-86 Titan 26171 | -4/Warlord | Spotted Striker 26177 | -4/Warlord | Destroyed Striker 26204 | -4/Warlord | Spotted Striker 26206 | -4/Warlord | Destroyed Striker 26210 | -4/Warlord | Spotted Striker 26211 | -4/Warlord | Spotted Striker 26211 | -4/Warlord | Spotted Executioner 26227 | -4/Warlord | Destroyed Striker 26228 | -4/Warlord | Destroyed Striker 26258 | -4/Warlord | Destroyed Executioner 26266 | -4/Warlord | Spotted Executioner 26268 | -4/Warlord | Destroyed Executioner 26282 | -4/Warlord | Spotted Striker 26283 | -4/Warlord | Destroyed Striker 26339 | -4/Warlord | Spotted Striker 26347 | -4/Warlord | Destroyed Striker 26376 | -4/Warlord | Spotted Striker 26378 | -4/Warlord | Destroyed 74 combat bots 26381 | -4/Warlord | Destroyed Striker 26404 | -4/Warlord | Spotted Executioner 26404 | -4/Warlord | Spotted Executioner 26404 | -4/Warlord | Spotted Executioner 26419 | -4/Warlord | Destroyed 13 combat bots 26472 | -4/Warlord | Destroyed Executioner 26475 | -4/Warlord | Destroyed Executioner 26481 | -4/Warlord | Destroyed Executioner 26499 | -4/Warlord | Found Corrupted Prototype Device 26503 | -4/Warlord | Destroyed 18 combat bots 26527 | -4/Warlord | Spotted Executioner 26529 | -4/Warlord | Destroyed Executioner 26599 | -4/Warlord | Found Unknown Device 26599 | -4/Warlord | Identified Quantum Capacitor 26604 | -4/Warlord | Spotted Striker 26604 | -4/Warlord | Spotted Executioner 26615 | -4/Warlord | Destroyed 19 combat bots 26679 | -4/Warlord | Spotted Striker 26681 | -4/Warlord | Destroyed Striker 26741 | -4/Warlord | Destroyed 21 combat bots 26764 | -4/Warlord | Destroyed Executioner 26788 | -4/Warlord | Destroyed Striker 26818 | -4/Warlord | Spotted Striker 26820 | -4/Warlord | Destroyed Striker 26862 | -4/Warlord | Destroyed 33 combat bots 26913 | -4/Warlord | Spotted Executioner 26915 | -4/Warlord | Destroyed Executioner 26925 | -4/Warlord | Spotted Striker 26928 | -4/Warlord | Destroyed Striker 26953 | -4/Warlord | Destroyed 20 combat bots 26975 | -4/Warlord | Spotted Striker 26977 | -4/Warlord | Destroyed Striker 27270 | -4/Warlord | Found Meganuke 27336 | -4/Warlord | Identified exit to Proximity Caves 27337 | -4/Warlord | Entered Proximity Caves 27355 | -3/Proximity Caves | Spotted B-86 Titan 27358 | -3/Proximity Caves | Destroyed B-86 Titan 27415 | -3/Proximity Caves | Attracted the attention of an 0b10 outpost 27432 | -3/Proximity Caves | Reached level 31 27453 | -3/Proximity Caves | Destroyed 10 combat bots 27487 | -3/Proximity Caves | Build established: Scavenger-Construct 27583 | -3/Proximity Caves | Discovered exit to Research (range 13) 27629 | -3/Proximity Caves | Upgraded with Utility slot (x1) 27630 | -3/Proximity Caves | Entered Research 27688 | -3/Research | Identified exit to Research 27715 | -3/Research | Spotted B-86 Titan 27722 | -3/Research | Destroyed B-86 Titan 27750 | -3/Research | Unchained authorized (BL-1NK) 27777 | -3/Research | Found Prototype Device 27777 | -3/Research | Identified Exp. Terrain Scanner 28351 | -3/Research | Spotted BL-1NK 28368 | -3/Research | Destroyed BL-1NK 28387 | -3/Research | Discovered new exit (range 13) 28391 | -3/Research | Identified exit to Testing 28554 | -3/Research | Fabricated A-27 Freighter? 28579 | -3/Research | Unchained authorized (CL-0N3) 29297 | -3/Research | R-10 Processor reconstituted as Quarantine Guard 29297 | -3/Research | Spotted Quarantine Guard 29308 | -3/Research | Destroyed Quarantine Guard 29308 | -3/Research | Quarantine Guard reconstituted as CL-0N3 29309 | -3/Research | Destroyed CL-0N3 29310 | -3/Research | Extracted schematics, analyses from CL-0N3's data core 29554 | -3/Research | Unchained authorized (GL-D0S) 29583 | -3/Research | Entered Testing 29583 | -3/Testing | Accompanied by 1 ally 29652 | -3/Testing | Found Prototype Device 29652 | -3/Testing | Identified AEGIS Remote Shield 29718 | -3/Testing | Spotted Striker 29727 | -3/Testing | Spotted Striker 29729 | -3/Testing | Destroyed Striker 29730 | -3/Testing | Destroyed Striker 29764 | -3/Testing | Discovered exit to Research (range 8) 29883 | -3/Testing | Found Prototype Device 29883 | -3/Testing | Identified Exp. Hardlight Generator 30188 | -3/Testing | Spotted Alpha 7 30189 | -3/Testing | Destroyed Alpha 7 30191 | -3/Testing | Found Prototype Device 30191 | -3/Testing | Identified Exp. ECM Suite 30333 | -3/Testing | First assault squad dispatched 30347 | -3/Testing | Reached level 32 30424 | -3/Testing | Destroyed 18 combat bots 30428 | -3/Testing | Entered Research 30599 | -2/Research | Unchained authorized (GL-D0S) 30678 | -2/Research | First assault squad dispatched 30773 | -2/Research | Destroyed 12 combat bots 30774 | -2/Research | Reached level 33 30862 | -2/Research | Destroyed 14 combat bots 30920 | -2/Research | Spotted GL-D0S 30922 | -2/Research | Destroyed GL-D0S 31364 | -2/Research | Spotted B-90 Cyclops 31371 | -2/Research | Discovered new exit (range 14) 31372 | -2/Research | Destroyed B-90 Cyclops 31376 | -2/Research | Identified exit to Quarantine 31383 | -2/Research | Entered Quarantine 31416 | -2/Quarantine | Found Alien Artifact 31502 | -2/Quarantine | Destroyed 9 combat bots 31620 | -2/Quarantine | Discovered new exit (range 11) 31633 | -2/Quarantine | First assault squad dispatched 31773 | -2/Quarantine | Upgraded with Power slot (x1) 31773 | -2/Quarantine | Reached level 34 31774 | -2/Quarantine | Found Alien Reactor 31774 | -2/Quarantine | Identified Matter Drive 31827 | -2/Quarantine | Upgraded with Utility slot (x1) 31852 | -2/Quarantine | Found Alien Artifact 31873 | -2/Quarantine | Identified exit to Access 31899 | -2/Quarantine | Spotted Fortress 31909 | -2/Quarantine | Destroyed Fortress 31936 | -2/Quarantine | Discovered new exit (range 6) 31936 | -2/Quarantine | Discovered new exit (range 7) 31937 | -2/Quarantine | Identified exit to Protoforge 31938 | -2/Quarantine | Identified exit to Section 7 32124 | -2/Quarantine | Build established: Scavenger-Sprinter 32231 | -2/Quarantine | Entered Section 7 32236 | -2/Section 7 | Spotted S7 Guard 32238 | -2/Section 7 | Destroyed S7 Guard 32241 | -2/Section 7 | Found Alien Artifact 32241 | -2/Section 7 | Identified Core Regenerator 32241 | -2/Section 7 | Used Core Regenerator, restored core integrity (+0) 32265 | -2/Section 7 | Found Alien Artifact 32265 | -2/Section 7 | Identified Integrity Redistributor 32265 | -2/Section 7 | Used Integrity Redistributor, redistributed integrity from core (-2) 32327 | -2/Section 7 | Found Alien Artifact 32327 | -2/Section 7 | Identified Core Reset Matrix 32327 | -2/Section 7 | Identified Subatomic Replicator 32327 | -2/Section 7 | Identified Transdimensional Reconstructor 32327 | -2/Section 7 | Used Core Reset Matrix 32331 | -2/Section 7 | Detected hypermatrix surge 32331 | -2/Section 7 | Sensed 19 artifacts in vicinity 32385 | -2/Section 7 | Discovered exit to Access (range 5) 32458 | -2/Section 7 | Spotted S7 Guard 32467 | -2/Section 7 | Spotted S7 Guard 32469 | -2/Section 7 | Destroyed S7 Guard 32473 | -2/Section 7 | Found Core Membrane 32473 | -2/Section 7 | Installed Core Membrane, gained immunity to corruption 32511 | -2/Section 7 | Destroyed 8 combat bots 32566 | -2/Section 7 | Spotted Striker 32566 | -2/Section 7 | Spotted Striker 32581 | -2/Section 7 | Destroyed Striker 32583 | -2/Section 7 | Spotted Striker 32584 | -2/Section 7 | Spotted Striker 32584 | -2/Section 7 | Destroyed Striker 32590 | -2/Section 7 | Destroyed Striker 32594 | -2/Section 7 | Destroyed Striker 32625 | -2/Section 7 | Spotted Executioner 32625 | -2/Section 7 | Spotted Executioner 32630 | -2/Section 7 | Destroyed Executioner 32635 | -2/Section 7 | Destroyed Executioner 32652 | -2/Section 7 | Spotted B-99 Colossus 32673 | -2/Section 7 | Found LRC Energy Well 32673 | -2/Section 7 | Installed LRC Energy Well, increased energy storage capacity (+250) 32676 | -2/Section 7 | Found LRC Matter Compressor 32676 | -2/Section 7 | Installed LRC Matter Compressor, increased matter storage capacity (+125) 32730 | -2/Section 7 | Destroyed B-99 Colossus 32781 | -2/Section 7 | Spotted Alpha 7 32781 | -2/Section 7 | Spotted Alpha 7 32792 | -2/Section 7 | Destroyed Alpha 7 32795 | -2/Section 7 | Destroyed Alpha 7 32801 | -2/Section 7 | Found Prototype Processor 32801 | -2/Section 7 | Identified Exp. Target Analyzer 32811 | -2/Section 7 | Found Prototype Processor 32811 | -2/Section 7 | Identified Exp. Targeting Computer 32817 | -2/Section 7 | Spotted S7 Guard 32823 | -2/Section 7 | Destroyed S7 Guard 32825 | -2/Section 7 | Found Integrated Thermoelectric Network 32825 | -2/Section 7 | Installed Integrated Thermoelectric Network, gained heat-energy exchange potential 32901 | -2/Section 7 | Scanned by Researcher 32902 | -2/Section 7 | Intercept squad dispatched 32905 | -2/Section 7 | Found Integrated Dissipator 32905 | -2/Section 7 | Installed Integrated Dissipator, increased core heat dissipation (+20) 32907 | -2/Section 7 | Spotted Tracker 32908 | -2/Section 7 | Spotted Tracker 32908 | -2/Section 7 | Destroyed Tracker 32911 | -2/Section 7 | Destroyed Tracker 32941 | -2/Section 7 | Spotted Combat Programmer 32942 | -2/Section 7 | Spotted Combat Programmer 32981 | -2/Section 7 | First assault squad dispatched 32990 | -2/Section 7 | Destroyed Combat Programmer 32991 | -2/Section 7 | Destroyed Combat Programmer 33224 | -2/Section 7 | Spotted B-90 Cyclops 33235 | -2/Section 7 | Reached level 35 33235 | -2/Section 7 | Destroyed B-90 Cyclops 33296 | -2/Section 7 | High security lockdown imminent 33302 | -2/Section 7 | Intercept squad dispatched 33314 | -2/Section 7 | Spotted Tracker 33317 | -2/Section 7 | Spotted Tracker 33317 | -2/Section 7 | Spotted Tracker 33320 | -2/Section 7 | Spotted Combat Programmer 33322 | -2/Section 7 | Spotted Combat Programmer 33325 | -2/Section 7 | Warped through subspace 33365 | -2/Section 7 | Destroyed Tracker 33376 | -2/Section 7 | High security lockdown engaged 33379 | -2/Section 7 | Destroyed Tracker 33382 | -2/Section 7 | Intercept squad dispatched 33387 | -2/Section 7 | Spotted Tracker 33387 | -2/Section 7 | Spotted Tracker 33387 | -2/Section 7 | Destroyed Tracker 33388 | -2/Section 7 | Spotted Tracker 33390 | -2/Section 7 | Destroyed Tracker 33392 | -2/Section 7 | Destroyed Tracker 33400 | -2/Section 7 | Core integrity fell below 50% 33402 | -2/Section 7 | Spotted Combat Programmer 33403 | -2/Section 7 | Spotted Combat Programmer 33405 | -2/Section 7 | Destroyed Combat Programmer 33407 | -2/Section 7 | Destroyed Combat Programmer 33428 | -2/Section 7 | Destroyed 7 combat bots 33527 | -2/Section 7 | Destroyed Investigator 33555 | -2/Section 7 | Destroyed 29 combat bots 33607 | -2/Section 7 | Destroyed 9 combat bots 33631 | -2/Section 7 | Build established: Alien-Tank 33639 | -2/Section 7 | Spotted Combat Programmer 33661 | -2/Section 7 | Destroyed Combat Programmer 33738 | -2/Section 7 | Spotted Striker 33760 | -2/Section 7 | Destroyed Striker 33786 | -2/Section 7 | Intercept squad dispatched 33789 | -2/Section 7 | Spotted Tracker 33789 | -2/Section 7 | Spotted Tracker 33790 | -2/Section 7 | Spotted Tracker 33798 | -2/Section 7 | Destroyed Tracker 33801 | -2/Section 7 | Destroyed Tracker 33801 | -2/Section 7 | Spotted Combat Programmer 33805 | -2/Section 7 | Destroyed Tracker 33806 | -2/Section 7 | Spotted Combat Programmer 33806 | -2/Section 7 | Spotted Combat Programmer 33820 | -2/Section 7 | Destroyed Tracker 33824 | -2/Section 7 | Entered Access 33825 | -1/Access | Core integrity fell below 50% 33841 | -1/Access | Destroyed 22 combat bots 33886 | -1/Access | Reached level 36 33907 | -1/Access | Destroyed 7 combat bots 33968 | -1/Access | Garrison activated, responded to threat 34044 | -1/Access | Intercept squad dispatched 34044 | -1/Access | Destroyed 15 combat bots 34060 | -1/Access | Spotted Tracker 34061 | -1/Access | Spotted Tracker 34064 | -1/Access | Destroyed Tracker 34064 | -1/Access | Destroyed Tracker 34074 | -1/Access | First assault squad dispatched 34135 | -1/Access | Spotted Combat Programmer 34136 | -1/Access | Spotted Combat Programmer 34139 | -1/Access | Destroyed Combat Programmer 34151 | -1/Access | Destroyed Combat Programmer 34185 | -1/Access | High security lockdown imminent 34250 | -1/Access | Destroyed 8 combat bots 34259 | -1/Access | Spotted B-99 Colossus 34265 | -1/Access | High security lockdown engaged 34266 | -1/Access | Destroyed B-99 Colossus 34368 | -1/Access | Spotted Striker 34368 | -1/Access | Spotted Executioner 34369 | -1/Access | Destroyed Striker 34372 | -1/Access | Reached level 37 34373 | -1/Access | Destroyed Executioner 34441 | -1/Access | Intercept squad dispatched 34446 | -1/Access | Destroyed 35 combat bots 34450 | -1/Access | Build established: Alien-Sprinter 34475 | -1/Access | Spotted Tracker 34476 | -1/Access | Spotted Tracker 34477 | -1/Access | Destroyed Tracker 34477 | -1/Access | Destroyed Tracker 34544 | -1/Access | Spotted Combat Programmer 34548 | -1/Access | Spotted Combat Programmer 34552 | -1/Access | Destroyed Combat Programmer 34576 | -1/Access | Destroyed Combat Programmer 34618 | -1/Access | Energy Cycler disabled 34667 | -1/Access | Spotted B-99 Colossus 34667 | -1/Access | Spotted B-99 Colossus 34686 | -1/Access | Discovered new exit (range 3) 34704 | -1/Access | Destroyed B-99 Colossus 34714 | -1/Access | Destroyed B-99 Colossus 34816 | -1/Access | Destroyed Investigator 34819 | -1/Access | Destroyed Executioner 34820 | -1/Access | Destroyed Striker 34820 | -1/Access | Spotted Striker 34822 | -1/Access | Destroyed Striker 34878 | -1/Access | Spotted Striker 34878 | -1/Access | Destroyed Striker 34896 | -1/Access | Sterilization system engaged 34923 | -1/Access | Destroyed 49 combat bots 34935 | -1/Access | Upgraded with Utility slot (x1) 34990 | -1/Access | Found Prototype Device 34990 | -1/Access | Identified Adv. Kinecellerator 35050 | -1/Access | Reached level 38 35110 | -1/Access | Destroyed 18 combat bots 35162 | -1/Access | Spotted Investigator 35163 | -1/Access | Destroyed Investigator 35185 | -1/Access | Upgraded with Weapon slot (x1) 35185 | -1/Access | Found Prototype Launcher 35185 | -1/Access | Identified Containment Facilitator 35196 | -1/Access | Ambient heat levels rising (+10) 35274 | -1/Access | Destroyed 47 combat bots 35305 | -1/Access | Found Unknown Device 35305 | -1/Access | Identified Heavy Servo Lattice 35346 | -1/Access | Ambient heat levels rising (+10) 35496 | -1/Access | Ambient heat levels rising (+10) 35586 | -1/Access | Found Prototype Device 35586 | -1/Access | Identified Exp. Actuator Array 35646 | -1/Access | Ambient heat levels rising (+10) 35680 | -1/Access | Identified exit to Command 35680 | -1/Access | Entered Command 35789 | -1/Command | Spotted B-99 Colossus 35798 | -1/Command | Destroyed B-99 Colossus 35805 | -1/Command | High security lockdown imminent 35811 | -1/Command | Spotted M Guard 35811 | -1/Command | Spotted M Guard 35813 | -1/Command | Spotted Combat Programmer 35820 | -1/Command | Spotted Combat Programmer 35826 | -1/Command | Destroyed 10 combat bots 35827 | -1/Command | Destroyed Combat Programmer 35849 | -1/Command | Spotted Alpha 7 35852 | -1/Command | Spotted Striker 35856 | -1/Command | Destroyed Striker 35860 | -1/Command | Spotted Executioner 35861 | -1/Command | Destroyed Alpha 7 35863 | -1/Command | Destroyed Executioner 35885 | -1/Command | High security lockdown engaged 35916 | -1/Command | Destroyed M Guard 35918 | -1/Command | Destroyed M Guard 35999 | -1/Command | Phase Generator disabled 36005 | -1/Command | Destroyed 28 combat bots 36097 | -1/Command | Spotted Investigator 36105 | -1/Command | Destroyed Investigator 36144 | -1/Command | Destroyed 9 combat bots 36155 | -1/Command | Spotted Striker 36155 | -1/Command | Spotted Executioner 36157 | -1/Command | Destroyed Striker 36157 | -1/Command | Destroyed Executioner 36175 | -1/Command | Reached level 39 36196 | -1/Command | Destroyed 8 combat bots 36225 | -1/Command | Spotted Striker 36225 | -1/Command | Spotted Executioner 36225 | -1/Command | Spotted Executioner 36226 | -1/Command | Spotted Executioner 36236 | -1/Command | Destroyed Striker 36264 | -1/Command | Destroyed Executioner 36276 | -1/Command | Destroyed Executioner 36280 | -1/Command | Destroyed Executioner 36301 | -1/Command | Destroyed 22 combat bots 36418 | -1/Command | Destroyed Executioner 36418 | -1/Command | Spotted Striker 36436 | -1/Command | Destroyed Striker 36437 | -1/Command | Spotted Executioner 36445 | -1/Command | Spotted Executioner 36447 | -1/Command | Destroyed Executioner 36453 | -1/Command | Destroyed Executioner 36472 | -1/Command | Build established: Alien-Scout 36476 | -1/Command | Destroyed Striker 36476 | -1/Command | Spotted Executioner 36476 | -1/Command | Destroyed Executioner 36483 | -1/Command | Spotted Executioner 36483 | -1/Command | Spotted Striker 36486 | -1/Command | Destroyed Striker 36486 | -1/Command | Destroyed Executioner 36509 | -1/Command | Destroyed 24 combat bots 36605 | -1/Command | Destroyed Combat Programmer 36605 | -1/Command | All MAIN.C guards destroyed 36627 | -1/Command | Spotted Executioner 36627 | -1/Command | Spotted Striker 36630 | -1/Command | Destroyed Striker 36631 | -1/Command | Destroyed Executioner 36645 | -1/Command | Spotted Executioner 36645 | -1/Command | Spotted Executioner 36645 | -1/Command | Spotted Executioner 36647 | -1/Command | Destroyed Executioner 36650 | -1/Command | Destroyed Executioner 36652 | -1/Command | Spotted Striker 36671 | -1/Command | Destroyed 9 combat bots 36673 | -1/Command | Destroyed Striker 36751 | -1/Command | Spotted Striker 36751 | -1/Command | Spotted Striker 36751 | -1/Command | Spotted Striker 36752 | -1/Command | Destroyed Executioner 36763 | -1/Command | Destroyed Striker 36764 | -1/Command | Destroyed Striker 36765 | -1/Command | Destroyed Striker 36769 | -1/Command | Spotted Executioner 36769 | -1/Command | Spotted Executioner 36769 | -1/Command | Spotted Executioner 36769 | -1/Command | Destroyed Executioner 36771 | -1/Command | Destroyed Executioner 36773 | -1/Command | Destroyed Executioner 36777 | -1/Command | Found Corrupted Prototype Processor 36777 | -1/Command | Identified Exp. Core Analyzer 36817 | -1/Command | Destroyed 17 combat bots 36855 | -1/Command | Used Subatomic Replicator to replicate Meganuke 36862 | -1/Command | Triggered Meganuke 36862 | -1/Command | 0b10 Conduit disabled 36863 | -1/Command | Emitted hypermatrix ping 36868 | -1/Command | Assembled emerged from beneath the floor 36951 | -1/Command | Destroyed 8 combat bots 37008 | -1/Command | Assembled emerged from beneath the floor 37014 | -1/Command | Spotted Alpha 7 37014 | -1/Command | Spotted Striker 37014 | -1/Command | Spotted Executioner 37014 | -1/Command | Spotted Executioner 37014 | -1/Command | Spotted Executioner 37083 | -1/Command | Spotted B-99 Colossus 37083 | -1/Command | Spotted B-99 Colossus 37084 | -1/Command | Destroyed Striker 37085 | -1/Command | Destroyed Executioner 37095 | -1/Command | Destroyed Executioner 37099 | -1/Command | Destroyed Alpha 7 37100 | -1/Command | Destroyed Executioner 37111 | -1/Command | Destroyed B-99 Colossus 37114 | -1/Command | Destroyed B-99 Colossus 37117 | -1/Command | Lost 15 allies 37135 | -1/Command | Destroyed 7 combat bots 37230 | -1/Command | Assembled emerged from beneath the floor 37265 | -1/Command | Triggered Meganuke 37266 | -1/Command | Core integrity fell below 20% 37296 | -1/Command | Lost 3 allies 37302 | -1/Command | Met MAIN.C 37433 | -1/Command | Destroyed MAIN.C Shell 37435 | -1/Command | MAIN.C activated Command garrisons 37449 | -1/Command | Destroyed MAIN.C 37453 | -1/Command | Discovered new exit (range 104) 37453 | -1/Command | Discovered new exit (range 44) 37453 | -1/Command | Extracted map data and part IDs from MAIN.C's data core 37529 | -1/Command | Identified exit to Surface 37529 | *** | Heading to fleet! Last Messages --------------- 37493_ Y-72 Warden destroyed. 37495_ K-01 Serf collects debris. 37499_ Used Protomatter to restore core integrity (+33, depleted) 37500_ K-01 Serf collects debris. 37500_ Acquired 2 matter. 37500_ Acquired 20 matter. 37501_ Acquired 8 matter. 37502_ Acquired 22 matter. 37510_ H-88 Terminator destroyed. 37511_ Acquired 112 matter. 37512_ H-88 Terminator suffers critical hit (Blast). 37512_ Destroyed Adv. Phase Shifter. 37512_ H-88 Terminator destroyed. 37521_ B-99 Colossus destroyed. 37526_ Acquired 9 matter. 37526_ Acquired 11 matter. 37526_ Acquired 89 matter. 37527_ Acquired 5 matter. 37527_ Acquired 4 matter. 37529_ EXIT=IDENTIFIED: SURFACE Map ----- +----------------------------------------------------+ | ?????????????????????????????????????????????????? | | ?????????????????????????????????????????????????? | | ?????????????????????????????????????????????????? | | ????????????????????????##########???????????????? | | ????????????????????????#! "" #???????????????? | | ????????????????????????# """" #???????????????? | | ????????????????????????# """" #???????????????? | | ????????????????????????# "" #???????????????? | | ????????????????????????# #???????????????? | | ????????????????????????# #???????????????? | | ????????????????????????# #???????????????? | | ????????????????????????# ! #???????????????? | | ????????????????????????# = #???????????????? | | ????????????????????????#####+###########????????? | | ??????????????????????????#%!%^ #????????? | | ??????????????????????????# * = #????????? | | ??????????????????????????# ^ #????????? | | ??????????????????????????# ^ #????????? | | ??????????????????????????### ^ #########?? | | ??????????????????????????# == # #?? | | ??????????????????????????# == # #?? | | ??????????????????????????### == # #?? | | ???????????????????????###### # #?? | | ???????????????????????# # #?? | | ?????###???????????????# + #?# | | ###### #???????????????# @ ####+###### # #?# | | #???????????????# #?# ## # #?# | | #???????????????#####?# ## # = #?# | | #?????#########???????# ## # #?# | | #?????#"""T"""#???????# ## # #?# | | #??####""" """######### ##+##+######?# | | #??# # # #??# | | #??# + # #??# | | [ #### "" # + #??# | | ] # # """" # # #??# | | # + """" # # #??# | | + # "" [! # # #??# | | # # [ # # * #??# | | # # # # #??# | | " " # #############+############# #??# | | ""R"" # #???????????# #???????????####+######??# | | """"" # #???????????# #????????????# ####### | | ######## #???????????# #########????# ! | | # ### #???????????# #????# = | | "" #???????????######### #????# k | | "T #???????????????#####+###### ####### | | # ## ###???????????????# ## ######?# | | ####### #?????????????????# ## # #?# | | ####??# #?????????????????# """" "## # ] #?# | | """#??# #?????????????????# """" ""## # #?# | +----------------------------------------------------+ Best States ------------- Heat Dissipation 179 Coolant Potential 120 Energy Generation 76 Energy Capacity 1190 Matter Stores 425 Matter Capacity 425 Sight Range 19 Robot Scan Range 36 Terrain Scan Range 24 Terrain Scan Density 10 ECM Strength 2 Jamming Range 14 Cloak Strength 2 Power Amplification 40 Additional Mass Support 12 EM Shielding 3 Armor Coverage 600 Resistance: KI 40 Resistance: TH 50 Resistance: EX 10 Propulsion Shielding 90 Point Defense Rating 240 Weapon Cycling 30 Phase Shifting 15 Evasion (%) 91 Targeting Accuracy 12 Core Analysis 8 Recoil Reduction 3 Particle Charging 37 Kinecelleration 50 Offensive Hacking 5 Defensive Hacking 5 Item Schematics ----------------- Imp. Q-thruster | -2/Section 7 | Archive Imp. Energy Well | -2/Section 7 | Archive Exp. Field Recycling Unit | -2/Section 7 | Archive Adv. Gravity Neutralizer | -2/Section 7 | Archive Proton Burst Cannon | -2/Section 7 | Archive Prc. Phase Gun | -2/Section 7 | Archive Exp. Thermal Defense Suite | -2/Section 7 | Archive Robot Schematics ------------------ X-87 Electro | -2/Section 7 | Archive L-61 Swordsman | -2/Section 7 | Archive G-73 Enforcer | -2/Section 7 | Archive R-10 Processor | -2/Section 7 | Archive A-27 Freighter | -2/Section 7 | Archive T-07 Excavator | -2/Section 7 | Archive K-01 Serf | -2/Section 7 | Archive Fabricated ------------ A-27 Freighter | x1 | -3/Research | Preloaded Repaired ---------- Nothing Studied --------- None Alien Tech Used ----------------- Matter Drive Core Regenerator Integrity Redistributor Core Reset Matrix Core Membrane LRC Energy Well LRC Matter Compressor Integrated Thermoelectric Network Integrated Dissipator Transdimensional Reconstructor Subatomic Replicator Achievements -------------- None Challenges ------------ None RPGLIKE | -11 -10 -10 -9 -9 -8 -8 -8 -6 -6 -6 -6 -6 -5 -5 -5 -5 -5 -5 -5 -5 -4 -4 -4 -4 -3 -3 -3 -2 -2 -2 -1 -1 --------- Run | Yrd Mat Min Mat Min Mat Sto Rec Fac Low Low Zio Dee Pro Fac Was Fac Ext Cet Arc Hub Fac Upp Upp War Pro Res Tes Res Qua Sec Acc Com Levels Raised 38 | . 3 . 6 . 3 2 . 4 . 1 . . 1 3 . 1 1 1 . . 2 . . 1 1 . 1 1 1 1 3 1 XP Earned 61156 | 3000 5135 750 7904 763 4732 2717 323 5572 367 718 118 357 1584 3657 32 1331 2200 1070 45 313 2620 109 195 2015 454 732 803 2244 794 2108 4297 2097 XP Spent 59990 | 2960 4410 . 7630 500 2410 5350 . 6675 . 1440 . . . 4685 . 1405 3000 . . . 1400 2900 . . 3200 . . . 4300 . 5500 2225 Upgrades 89 | 10 10 . 9 1 5 4 . 7 . 3 . . . 10 . 12 3 . . . 1 1 . . 1 . . . 2 . 2 8 Power Slot 2 | . . . . 1 . . . . . . . . . . . . . . . . . . . . . . . . 1 . . . Propulsion Slot 3 | 1 1 . 1 . . . . . . . . . . . . . . . . . . . . . . . . . . . . . Utility Slot 12 | 1 1 . 3 . . 1 . 1 . . . . . 1 . . . . . . . 1 . . 1 . . . 1 . 1 . Weapon Slot 5 | 1 1 . 1 . . . . . . . . . . . . . . . . . 1 . . . . . . . . . 1 . Core Integrity 8 | . . . . . . . . . . . . . . . . 8 . . . . . . . . . . . . . . . . Heat Dissipation 18 | 3 4 . 3 . 3 . . . . 2 . . . 3 . . . . . . . . . . . . . . . . . . Energy Generation 3 | . 2 . . . . . . 1 . . . . . . . . . . . . . . . . . . . . . . . . Mass Support 4 | 1 1 . . . 1 1 . . . . . . . . . . . . . . . . . . . . . . . . . . Inventory Capacity 6 | 1 . . . . 1 2 . 2 . . . . . . . . . . . . . . . . . . . . . . . . Sight Range 3 | . . . . . . . . . . . . . . . . . . . . . . . . . . . . . . . . 3 Sensor Range 13 | . . . . . . . . 2 . . . . . 6 . 2 . . . . . . . . . . . . . . . 3 Ranged Accuracy 8 | 2 . . 1 . . . . 1 . 1 . . . . . . 3 . . . . . . . . . . . . . . . Hack Attack % 1 | . . . . . . . . . . . . . . . . 1 . . . . . . . . . . . . . . . . Hack Defense % 1 | . . . . . . . . . . . . . . . . 1 . . . . . . . . . . . . . . . . EX Resistance % 2 | . . . . . . . . . . . . . . . . . . . . . . . . . . . . . . . . 2 Protomatter Created 35225 | . 213 . 510 62 467 762 112 965 75 249 224 372 432 1129 173 775 3230 1230 322 1036 3145 109 658 5621 549 461 1234 1042 563 2437 3891 3177 Integrity Restored 35975 | . 279 . 623 157 882 950 336 1396 339 467 67 827 317 1013 . 1733 3101 1182 752 2128 4177 108 276 3507 204 377 626 1152 639 3099 2696 2565 Core 27152 | . 279 . 465 130 732 801 336 1142 339 297 67 720 196 811 . 1553 2401 779 555 1491 3282 84 213 2716 71 153 241 577 269 2114 2122 2216 Parts 8823 | . . . 158 27 150 149 . 254 . 170 . 107 121 202 . 180 700 403 197 637 895 24 63 791 133 224 385 575 370 985 574 349 Protomatter Decayed 15515 | . . 74 65 48 111 252 . 375 18 67 . 116 257 553 85 45 622 1136 . 262 416 94 400 3358 390 336 640 361 317 761 2532 1824 Game ------ Seed RocketGravjetStorage Manual? 0 Play Time 07:10:34 Cumulative 684.6 hours Start 2026.07.20 @ 07:27:32 End 2026.07.20 @ 18:39:49 Sessions 1 Manual Loads 0 Difficulty Rogue Special Mode Winter2019/RPGLIKE Game No. 338 Rogue 184 Adventurer 154 Explorer 0 Win Type 2 Total 24 Types 4/6/5/3/2/1/0/1/1/1 Lore% 95 Gallery% 88 Achievement% 68 Wizard Run 0 Options --------- Layout 0 ASCII 0 Keyboard 0 Movement Numpad Keybinds 0 Fullscreen 2 Font 18/SmallcapsGlow Map View 76x50 Zoom Use 0% Tactical HUD 1 Map Filters NONE Filters NONE Steam 1 RUN: 058b8467-c53b-4915-b4a2-930fb8be4345